{"text_format":"1","workbook":"xlsx","n_sheets":3,"sheets":["Introduction","Key","Cincinnati-Course-Mapping Tool"],"not_rendered":{"charts":0,"images":1,"macros":1,"external_links":0,"defined_names":4,"comments":1,"pivot_tables":0},"unopened":[],"bounds":{"document_bytes":16777216,"sheet_cells":100000,"rows_first":2000,"rows_last":500,"rows_between":2000,"halvings":0,"cell_chars":16384,"cell_head_chars":4096},"cells_cut":0,"cells_raw":0,"read":"whole","date_system":"1900"}

{"sheet":"Introduction","index":0,"n_rows":26,"n_cols":4,"rows_kept":26,"cut":false,"hidden":false,"merged":[[29,0,29,14]]}
[]
["Course-Mapping Tool for the MCAT  Exam"]
["The tool What's on the MCAT Exam? available at",null,null,"www.aamc.org/mcat2015exam"]
[]
[]
[]
[]
[]
[]
[]
[]
[]
[]
[]
[]
[]
[]
[]
[]
[]
[]
[]
[]
[]
[]
["For questions contact advisors@aamc.org"]

{"sheet":"Key","index":1,"n_rows":108,"n_cols":2,"rows_kept":108,"cut":false,"hidden":false,"merged":[[2,0,2,1],[16,0,16,1],[10,0,10,1],[11,0,11,1],[12,0,12,1],[14,0,14,1],[13,0,13,1],[15,0,15,1],[7,0,7,1],[6,0,6,1],[5,0,5,1],[4,0,4,1],[3,0,3,1]]}
[]
["KEY"]
["Skills: Scientific Inquiry and Reasoning Skills--the inquiry and reasoning skills that are required to solve scientific problems"]
["Foundational Concept--the big ideas in the sciences that provide the foundation for learning in medicine"]
["Content Category--the topics and subtopics that are needed to understand the foundational concepts"]
["Topic--the topics within the context of the content category which may be tested on the MCAT Exam"]
["Topic taught at your school--Indicates if this topic is taught at your school.  As the tool is completed for those topics which have been marked as taught in a course, the cells will change from Red to White and from NO! to Yes "]
["Topic on Current MCAT--Indicates if this topic (or part of it) appeared on the current exam"]
[]
["What's on the MCAT Exam? course levels. According to baccalaureate faculty survey respondents in 2009, the listed topics were taught in the following courses at most institutions.  Many undergraduate institutions are now creating more flexible course sequences."]
["BIO = two-semester sequence of introductory biology"]
["BC = first-semester biochemistry"]
["OC =two-semester sequence of organic chemistry"]
["GC =  two-semester sequence of general chemistry"]
["PHY =two-semester sequence of introductory physics"]
["PSY = one semester of introductory psychology"]
["SOC = one semester of introductory sociology"]
[]
["Cells shaded in orange:"]
[]
[]
[]
[]
[]
[]
[]
[]
[]
[]
[]
[]
[]
[]
[]
["MCAT2015Exam Structure "]
["Biological and Biochemical Foundations of Living Systems (Foundational Concepts 1-3)"]
["Foundational Concept 1 (FC1):","Biomolecules have unique properties that determine how they contribute to the structure and function of cells and how they participate in the processes necessary to maintain life."]
["Content categories:"]
["CC1A. ","Structure and function of proteins and their constituent amino acids"]
["CC1B. ","Transmission of genetic information from the gene to the protein"]
["CC1C. ","Transmission of heritable information from generation to generation and the processes that increase genetic diversity"]
["CC1D. ","Principles of bioenergetics and fuel molecule metabolism"]
["Foundational Concept 2 (FC2):","Highly-organized assemblies of molecules, cells, and organs interact to carry out the functions of living organisms."]
["Content categories:"]
["CC2A. ","Assemblies of molecules, cells, and groups of cells within single cellular and multicellular organisms"]
["CC2B.","The structure, growth, physiology, and genetics of prokaryotes and viruses"]
["CC2C. ","Processes of cell division, differentiation, and specialization"]
["Foundational Concept 3 (FC3):","Complex systems of tissues and organs sense the internal and external environments of multicellular organisms, and through integrated functioning, maintain a stable internal environment within an ever-changing external environment."]
["Content categories:"]
["CC3A. ","Structure and functions of the nervous and endocrine systems and ways in which these systems coordinate the organ systems"]
["CC3B. ","Structure and integrative functions of the main organ systems"]
[]
["Chemical and Physical Foundations of Biological Systems (Foundational Concepts 4-5)"]
["Foundational Concept 4 (FC4):","Complex living organisms transport materials, sense their environment, process signals, and respond to changes using processes understood in terms of physical principles."]
["Content categories:"]
["CC4A.","Translational motion, forces, work, energy, and equilibrium in living systems"]
["CC4B. ","Importance of fluids for the circulation of blood, gas movement, and gas exchange"]
["CC4C.","Electrochemistry and electrical circuits and their elements"]
["CC4D.","How light and sound interact with matter"]
["CC4E. ","Atoms, nuclear decay, electronic structure, and atomic chemical behavior"]
["Foundational Concept 5 (FC5):","The principles that govern chemical interactions and reactions form the basis for a broader understanding of the molecular dynamics of living systems."]
["Content categories:"]
["CC5A. ","Unique nature of water and its solutions"]
["CC5B. ","Nature of molecules and intermolecular interactions "]
["CC5C. ","Separation and purification methods"]
["CC5D. ","Structure, function, and reactivity of biologically-relevant molecules"]
["CC5E. ","Principles of chemical thermodynamics and kinetics"]
[]
["Psychological, Social, and Biological Foundations of Behavior (Foundational Concepts 6-10)"]
["Foundational Concept 6 (FC6):","Biological, psychological, and sociocultural factors influence the ways that individuals perceive, think about, and react to the world."]
["Content categories:"]
["CC6A. ","Sensing the environment"]
["CC6B.","Making sense of the environment"]
["CC6C.","Responding to the world"]
["Foundational Concept 7 (FC7):","Biological, psychological, and sociocultural factors influence behavior and behavior change."]
["Content categories:"]
["CC7A. ","Individual influences on behavior"]
["CC7B.","Social processes that influence human behavior"]
["CC7C. ","Attitude and behavior change"]
["Foundational Concept 8 (FC8):","Psychological, sociocultural, and biological factors influence the way we think about ourselves and others, as well as how we interact with others."]
["Content categories:"]
["CC8A. ","Self identity"]
["CC8B. ","Social thinking"]
["CC8C. ","Social interactions"]
["Foundational Concept 9 (FC9):","Cultural and social differences influence well-being."]
["Content categories:"]
["CC9A. ","Understanding social structure"]
["CC9B. ","Demographic characteristics and processes"]
["Foundational Concept 10 (FC10):","Social stratification and access to resources influence well-being."]
["Content category:"]
["CC10A.","Social inequality "]
[]
["Scientific Inquiry and Reasoning Skills","The scientific inquiry and reasoning skills that are required to solve scientific problems"]
["#1 ","Knowledge of Scientific Concepts and Principles"]
["#2 ","Scientific Reasoning and Problem Solving"]
["#3","Reasoning about the Design and Execution of Research"]
["#4","Data-Based and Statistical Reasoning "]
[]
[]
["Entering Medical School Competencies from the Scientific Foundations for Future Physicians Report.  ","Full report available at https://www.aamc.org/download/271072/data/scientificfoundationsforfuturephysicians.pdf"]
["E1","Apply quantitative reasoning and appropriate mathematics to describe or explain phenomena in the natural world."]
["E2","Demonstrate understanding of the process of scientific inquiry, and explain how scientific knowledge is discovered and validated."]
["E3","Demonstrate knowledge of basic physical principles and their applications to the understanding of living systems."]
["E4","Demonstrate knowledge of basic principles of chemistry and some of their applications to the understanding of living systems."]
["E5","Demonstrate knowledge of how biomolecules contribute to the structure and function of cells."]
["E6","Apply understanding of principles of how molecular and cell assemblies, organs, and organisms develop structure and carry out function."]
["E7","Explain how organisms sense and control their internal environment and how they respond to external change."]
["E8","Demonstrate an understanding of how the organizing principle of evolution by natural selection explains the diversity of life on earth."]

{"sheet":"Cincinnati-Course-Mapping Tool","index":2,"n_rows":160,"n_cols":115,"rows_kept":160,"cut":false,"hidden":false,"merged":[]}
[null,null,null,null,null,null,null,"What's on the MCAT Exam Course Levels",null,null,null,null,null,null,null,null,null,null,"Course List at Your School"]
[]
[]
[]
[]
["Skills","Foundational Concept","Content Category","Topic","Topic taught at your school","Topic On Current MCAT","BIO","BC","OC","GC","PHY","PSY","SOC","PD 1000","PSYC 1001","SOC 1001","BIOL 1081","BIOL 1082","CHEM 1040","CHEM 1041","CHEM 2040","CHEM 2041","CHEM 3040","MEDS 3020","MEDS 4027","MEDS 4028","PHYS 1051","PHYS 1052","PHYS 2001","PHYS 2002","Genetics BIOL 2083","Genetics MEDS 3021","BIOL 2085C","Cell BIOL 4011","Micro MEDS 3024","A&P1 BIOL 2001C","A&P2 BIOL 2002C","HC-Anat BIOL 3020C","HC Phys BIOL 3021","Antibiotic Resistance BIOL 5121","G Anat MEDS 4052C","H Phys MEDS 3026","MEDS 3021 MolGen","MEDS 3022 Human Med Gen"]
[null,"FC1  (E5*and parts of E8*)","CC1A","Amino Acids",{"$f":"IF(DK7>0,\"Yes\",\"NO!\")","v":"Yes"},"X",null,"X","X",null,null,null,null,null,null,null,"x",null,null,null,null,"X","X",null,null,null,null,null,null,null,null,null,"x",null,null,"x",null,null,null,null,null,null,"x",null,null,null,null,null,null,null,null,null,null,null,null,null,null,null,null,null,null,null,null,null,null,null,null,null,null,null,null,null,null,null,null,null,null,null,null,null,null,null,null,null,null,null,null,null,null,null,null,null,null,null,null,null,null,null,null,null,null,null,null,null,null,null,null,null,null,null,null,null,null,null,{"$f":"COUNTA(P7:DJ7)","v":6}]
[null,"FC1  (E5*and parts of E8*)","CC1A","Protein Structure ",{"$f":"IF(DK8>0,\"Yes\",\"NO!\")","v":"Yes"},"X","X","X","X",null,null,null,null,null,null,null,"x",null,null,null,null,null,"X",null,null,null,null,null,null,null,null,null,"x",null,null,"x",null,null,null,null,null,null,"x","x",null,null,null,null,null,null,null,null,null,null,null,null,null,null,null,null,null,null,null,null,null,null,null,null,null,null,null,null,null,null,null,null,null,null,null,null,null,null,null,null,null,null,null,null,null,null,null,null,null,null,null,null,null,null,null,null,null,null,null,null,null,null,null,null,null,null,null,null,null,null,6]
[null,"FC1  (E5*and parts of E8*)","CC1A","Non-Enzymatic Protein Function ","Yes",null,"X","X",null,null,null,null,null,null,null,null,"x",null,null,null,null,null,"X",null,null,null,null,null,null,null,null,null,"x",null,null,"x",null,null,null,null,null,null,"x","x",null,null,null,null,null,null,null,null,null,null,null,null,null,null,null,null,null,null,null,null,null,null,null,null,null,null,null,null,null,null,null,null,null,null,null,null,null,null,null,null,null,null,null,null,null,null,null,null,null,null,null,null,null,null,null,null,null,null,null,null,null,null,null,null,null,null,null,null,null,null,6]
[null,"FC1  (E5*and parts of E8*)","CC1A","Enzyme Structure and Function","Yes","X","X","X",null,null,null,null,null,null,null,null,"x",null,null,null,null,null,"X",null,null,null,null,null,null,null,null,null,"x","x",null,"x",null,null,null,null,null,null,null,"x",null,null,null,null,null,null,null,null,null,null,null,null,null,null,null,null,null,null,null,null,null,null,null,null,null,null,null,null,null,null,null,null,null,null,null,null,null,null,null,null,null,null,null,null,null,null,null,null,null,null,null,null,null,null,null,null,null,null,null,null,null,null,null,null,null,null,null,null,null,null,6]
[null,"FC1  (E5*and parts of E8*)","CC1A","Control of Enzyme Activity ","Yes","X","X","X",null,null,null,null,null,null,null,null,"x",null,null,null,null,null,"X",null,null,null,null,null,null,null,null,null,"x",null,null,null,null,null,null,null,null,"X",null,null,null,null,null,null,null,null,null,null,null,null,null,null,null,null,null,null,null,null,null,null,null,null,null,null,null,null,null,null,null,null,null,null,null,null,null,null,null,null,null,null,null,null,null,null,null,null,null,null,null,null,null,null,null,null,null,null,null,null,null,null,null,null,null,null,null,null,null,null,null,null,4]
[null,"FC1  (E5*and parts of E8*)","CC1B","Nucleic Acid Structure and Function","Yes","X","X","X",null,null,null,null,null,null,null,null,"x",null,null,null,null,null,"X",null,null,null,null,null,null,null,"x",null,null,null,null,"x",null,null,null,"x",null,null,"x","x",null,null,null,null,null,null,null,null,null,null,null,null,null,null,null,null,null,null,null,null,null,null,null,null,null,null,null,null,null,null,null,null,null,null,null,null,null,null,null,null,null,null,null,null,null,null,null,null,null,null,null,null,null,null,null,null,null,null,null,null,null,null,null,null,null,null,null,null,null,null,7]
[null,"FC1  (E5*and parts of E8*)","CC1B","DNA Replication","Yes","X","X",null,null,null,null,null,null,null,null,null,"x",null,null,null,null,null,"X",null,null,null,null,null,null,null,"x",null,null,null,null,"x",null,null,null,"x",null,null,"x","x",null,null,null,null,null,null,null,null,null,null,null,null,null,null,null,null,null,null,null,null,null,null,null,null,null,null,null,null,null,null,null,null,null,null,null,null,null,null,null,null,null,null,null,null,null,null,null,null,null,null,null,null,null,null,null,null,null,null,null,null,null,null,null,null,null,null,null,null,null,null,7]
[null,"FC1  (E5*and parts of E8*)","CC1B","Repair of DNA","Yes","X","X",null,null,null,null,null,null,null,null,null,"x",null,null,null,null,null,"X",null,null,null,null,null,null,null,"x",null,null,null,null,"x",null,null,null,"x",null,null,"x","x",null,null,null,null,null,null,null,null,null,null,null,null,null,null,null,null,null,null,null,null,null,null,null,null,null,null,null,null,null,null,null,null,null,null,null,null,null,null,null,null,null,null,null,null,null,null,null,null,null,null,null,null,null,null,null,null,null,null,null,null,null,null,null,null,null,null,null,null,null,null,7]
[null,"FC1  (E5*and parts of E8*)","CC1B","Genetic Code","Yes","X","X",null,null,null,null,null,null,null,null,null,"x",null,null,null,null,null,"X",null,null,null,null,null,null,null,"x",null,null,null,null,"x",null,null,null,"x",null,null,"x","x",null,null,null,null,null,null,null,null,null,null,null,null,null,null,null,null,null,null,null,null,null,null,null,null,null,null,null,null,null,null,null,null,null,null,null,null,null,null,null,null,null,null,null,null,null,null,null,null,null,null,null,null,null,null,null,null,null,null,null,null,null,null,null,null,null,null,null,null,null,null,7]
[null,"FC1  (E5*and parts of E8*)","CC1B","Transcription","Yes","X","X",null,null,null,null,null,null,null,null,null,"x",null,null,null,null,null,"X",null,null,null,null,null,null,null,"x",null,null,null,null,"x",null,null,null,"x",null,null,"x","x",null,null,null,null,null,null,null,null,null,null,null,null,null,null,null,null,null,null,null,null,null,null,null,null,null,null,null,null,null,null,null,null,null,null,null,null,null,null,null,null,null,null,null,null,null,null,null,null,null,null,null,null,null,null,null,null,null,null,null,null,null,null,null,null,null,null,null,null,null,null,7]
[null,"FC1  (E5*and parts of E8*)","CC1B","Translation","Yes","X","X",null,null,null,null,null,null,null,null,null,"x",null,null,null,null,null,"X",null,null,null,null,null,null,null,"x",null,null,null,null,"x",null,null,null,"x",null,null,"x","x",null,null,null,null,null,null,null,null,null,null,null,null,null,null,null,null,null,null,null,null,null,null,null,null,null,null,null,null,null,null,null,null,null,null,null,null,null,null,null,null,null,null,null,null,null,null,null,null,null,null,null,null,null,null,null,null,null,null,null,null,null,null,null,null,null,null,null,null,null,null,7]
[null,"FC1  (E5*and parts of E8*)","CC1B","Eukaryotic Chromosome Organization","Yes","X","X",null,null,null,null,null,null,null,null,null,"x",null,null,null,null,null,null,null,null,null,null,null,null,null,"x",null,null,null,null,"x",null,null,null,null,null,null,"x","x",null,null,null,null,null,null,null,null,null,null,null,null,null,null,null,null,null,null,null,null,null,null,null,null,null,null,null,null,null,null,null,null,null,null,null,null,null,null,null,null,null,null,null,null,null,null,null,null,null,null,null,null,null,null,null,null,null,null,null,null,null,null,null,null,null,null,null,null,null,null,5]
[null,"FC1  (E5*and parts of E8*)","CC1B","Control of Gene Expression in Prokaryotes","Yes",null,"X",null,null,null,null,null,null,null,null,null,"x",null,null,null,null,null,"X",null,null,null,null,null,null,null,"x",null,null,null,null,null,null,null,null,null,null,null,"x",null,null,null,null,null,null,null,null,null,null,null,null,null,null,null,null,null,null,null,null,null,null,null,null,null,null,null,null,null,null,null,null,null,null,null,null,null,null,null,null,null,null,null,null,null,null,null,null,null,null,null,null,null,null,null,null,null,null,null,null,null,null,null,null,null,null,null,null,null,null,null,4]
[null,"FC1  (E5*and parts of E8*)","CC1B","Control of Gene Expresson in Eukaryotes","Yes","X","X",null,null,null,null,null,null,null,null,null,"x",null,null,null,null,null,"X",null,null,null,null,null,null,null,"x",null,null,null,null,"x",null,null,null,null,null,null,"x","x",null,null,null,null,null,null,null,null,null,null,null,null,null,null,null,null,null,null,null,null,null,null,null,null,null,null,null,null,null,null,null,null,null,null,null,null,null,null,null,null,null,null,null,null,null,null,null,null,null,null,null,null,null,null,null,null,null,null,null,null,null,null,null,null,null,null,null,null,null,null,6]
[null,"FC1  (E5*and parts of E8*)","CC1B","Recombinant DNA and Biotechnology","Yes","X","X",null,null,null,null,null,null,null,null,null,"x",null,null,null,null,null,"X",null,null,null,null,null,null,null,"x",null,null,null,null,null,null,null,null,"x",null,null,"x","x",null,null,null,null,null,null,null,null,null,null,null,null,null,null,null,null,null,null,null,null,null,null,null,null,null,null,null,null,null,null,null,null,null,null,null,null,null,null,null,null,null,null,null,null,null,null,null,null,null,null,null,null,null,null,null,null,null,null,null,null,null,null,null,null,null,null,null,null,null,null,6]
[null,"FC1  (E5*and parts of E8*)","CC1C","Evidence that DNA is Genetic Material","Yes",null,"X",null,null,null,null,null,null,null,null,null,"x",null,null,null,null,null,null,null,null,null,null,null,null,null,"x",null,null,null,null,null,null,null,null,null,null,null,"x","x",null,null,null,null,null,null,null,null,null,null,null,null,null,null,null,null,null,null,null,null,null,null,null,null,null,null,null,null,null,null,null,null,null,null,null,null,null,null,null,null,null,null,null,null,null,null,null,null,null,null,null,null,null,null,null,null,null,null,null,null,null,null,null,null,null,null,null,null,null,null,4]
[null,"FC1  (E5*and parts of E8*)","CC1C","Mendelian Concepts","Yes","X","X",null,null,null,null,null,null,null,null,null,"x",null,null,null,null,null,null,null,null,null,null,null,null,null,"x",null,null,null,null,"x",null,null,null,null,null,null,"x","x",null,null,null,null,null,null,null,null,null,null,null,null,null,null,null,null,null,null,null,null,null,null,null,null,null,null,null,null,null,null,null,null,null,null,null,null,null,null,null,null,null,null,null,null,null,null,null,null,null,null,null,null,null,null,null,null,null,null,null,null,null,null,null,null,null,null,null,null,null,null,5]
[null,"FC1  (E5*and parts of E8*)","CC1C","Meiosis and Other Factors Affecting Genetic Variability","Yes","X","X",null,null,null,null,null,null,null,null,null,"x",null,null,null,null,null,null,null,null,null,null,null,null,null,"x",null,null,null,null,"x",null,null,null,null,null,null,"x","x",null,null,null,null,null,null,null,null,null,null,null,null,null,null,null,null,null,null,null,null,null,null,null,null,null,null,null,null,null,null,null,null,null,null,null,null,null,null,null,null,null,null,null,null,null,null,null,null,null,null,null,null,null,null,null,null,null,null,null,null,null,null,null,null,null,null,null,null,null,null,5]
[null,"FC1  (E5*and parts of E8*)","CC1C","Analytic Methods","Yes","X","X",null,null,null,null,null,null,null,null,null,"x",null,null,null,null,null,null,null,null,null,null,null,null,null,"x",null,null,null,null,null,null,null,null,null,null,null,"x","x",null,null,null,null,null,null,null,null,null,null,null,null,null,null,null,null,null,null,null,null,null,null,null,null,null,null,null,null,null,null,null,null,null,null,null,null,null,null,null,null,null,null,null,null,null,null,null,null,null,null,null,null,null,null,null,null,null,null,null,null,null,null,null,null,null,null,null,null,null,null,4]
[null,"FC1  (E5*and parts of E8*)","CC1C","Evolution","Yes","X","X",null,null,null,null,null,null,null,null,null,"x","x",null,null,null,null,null,null,null,null,null,null,null,null,null,null,null,null,null,null,null,"x",null,null,null,null,"x",null,null,null,null,null,null,null,null,null,null,null,null,null,null,null,null,null,null,null,null,null,null,null,null,null,null,null,null,null,null,null,null,null,null,null,null,null,null,null,null,null,null,null,null,null,null,null,null,null,null,null,null,null,null,null,null,null,null,null,null,null,null,null,null,null,null,null,null,null,null,null,4]
[null,"FC1  (E5*and parts of E8*)","CC1D","Principles of Bioenergetics","Yes",null,null,"X",null,"X",null,null,null,null,null,null,"x",null,null,null,null,null,"X",null,null,null,null,null,null,null,null,null,"x","x",null,null,null,null,null,null,null,"X",null,null,null,null,null,null,null,null,null,null,null,null,null,null,null,null,null,null,null,null,null,null,null,null,null,null,null,null,null,null,null,null,null,null,null,null,null,null,null,null,null,null,null,null,null,null,null,null,null,null,null,null,null,null,null,null,null,null,null,null,null,null,null,null,null,null,null,null,null,null,null,null,5]
[null,"FC1  (E5*and parts of E8*)","CC1D","Carbohydrates","Yes","X",null,"X","X",null,null,null,null,null,null,null,"x",null,null,null,null,"X","X",null,null,null,null,null,null,null,null,null,null,null,null,"x",null,null,null,null,null,null,null,"x",null,null,null,null,null,null,null,null,null,null,null,null,null,null,null,null,null,null,null,null,null,null,null,null,null,null,null,null,null,null,null,null,null,null,null,null,null,null,null,null,null,null,null,null,null,null,null,null,null,null,null,null,null,null,null,null,null,null,null,null,null,null,null,null,null,null,null,null,null,null,5]
[null,"FC1  (E5*and parts of E8*)","CC1D","Glycolysis, Gluconeogenesis, and the Pentose Phosphate Pathway","Yes",null,"X","X",null,null,null,null,null,null,null,null,"x",null,null,null,null,null,null,null,null,null,null,null,null,null,null,null,"x","x",null,"x",null,null,"x",null,null,"X",null,null,null,null,null,null,null,null,null,null,null,null,null,null,null,null,null,null,null,null,null,null,null,null,null,null,null,null,null,null,null,null,null,null,null,null,null,null,null,null,null,null,null,null,null,null,null,null,null,null,null,null,null,null,null,null,null,null,null,null,null,null,null,null,null,null,null,null,null,null,null,null,6]
[null,"FC1  (E5*and parts of E8*)","CC1D","Principles of Metabolic Regulation ","Yes",null,"X","X",null,null,null,null,null,null,null,null,"x",null,null,null,null,null,"X",null,null,null,null,null,null,null,null,null,"x","x",null,null,null,null,null,null,null,"X",null,null,null,null,null,null,null,null,null,null,null,null,null,null,null,null,null,null,null,null,null,null,null,null,null,null,null,null,null,null,null,null,null,null,null,null,null,null,null,null,null,null,null,null,null,null,null,null,null,null,null,null,null,null,null,null,null,null,null,null,null,null,null,null,null,null,null,null,null,null,null,null,5]
[null,"FC1  (E5*and parts of E8*)","CC1D","Citric Acid Cycle","Yes",null,"X","X",null,null,null,null,null,null,null,null,"x",null,null,null,null,null,null,null,null,null,null,null,null,null,null,null,"x","x",null,"x",null,null,"x",null,null,null,null,null,null,null,null,null,null,null,null,null,null,null,null,null,null,null,null,null,null,null,null,null,null,null,null,null,null,null,null,null,null,null,null,null,null,null,null,null,null,null,null,null,null,null,null,null,null,null,null,null,null,null,null,null,null,null,null,null,null,null,null,null,null,null,null,null,null,null,null,null,null,null,5]
[null,"FC1  (E5*and parts of E8*)","CC1D","Metabolism of Fatty Acids and Proteins ","Yes","X","X","X",null,null,null,null,null,null,null,null,null,null,null,null,null,null,null,null,null,null,null,null,null,null,null,null,"x","x",null,null,null,null,null,null,null,null,null,null,null,null,null,null,null,null,null,null,null,null,null,null,null,null,null,null,null,null,null,null,null,null,null,null,null,null,null,null,null,null,null,null,null,null,null,null,null,null,null,null,null,null,null,null,null,null,null,null,null,null,null,null,null,null,null,null,null,null,null,null,null,null,null,null,null,null,null,null,null,null,2]
[null,"FC1  (E5*and parts of E8*)","CC1D","Oxidative Phosphorylation  ","Yes","X","X","X",null,null,null,null,null,null,null,null,"x",null,null,null,null,null,null,null,null,null,null,null,null,null,null,null,"x","x",null,"x",null,null,"x",null,null,null,null,null,null,null,null,null,null,null,null,null,null,null,null,null,null,null,null,null,null,null,null,null,null,null,null,null,null,null,null,null,null,null,null,null,null,null,null,null,null,null,null,null,null,null,null,null,null,null,null,null,null,null,null,null,null,null,null,null,null,null,null,null,null,null,null,null,null,null,null,null,null,null,5]
[null,"FC1  (E5*and parts of E8*)","CC1D","Hormonal Regulation and Integration of Metabolism ","Yes",null,null,"X",null,null,null,null,null,null,null,null,null,null,null,null,null,null,null,null,null,null,null,null,null,null,null,null,null,null,null,"x",null,null,null,null,null,"X",null,null,null,null,null,null,null,null,null,null,null,null,null,null,null,null,null,null,null,null,null,null,null,null,null,null,null,null,null,null,null,null,null,null,null,null,null,null,null,null,null,null,null,null,null,null,null,null,null,null,null,null,null,null,null,null,null,null,null,null,null,null,null,null,null,null,null,null,null,null,null,null,2]
[null,"FC2 (E6*)","CC2A","Plasma Membrane ","Yes","X","X","X","X","X",null,null,null,null,null,null,"x",null,null,null,null,null,null,null,null,null,null,null,null,null,null,null,"x","x",null,"x",null,null,null,null,null,"X",null,null,null,null,null,null,null,null,null,null,null,null,null,null,null,null,null,null,null,null,null,null,null,null,null,null,null,null,null,null,null,null,null,null,null,null,null,null,null,null,null,null,null,null,null,null,null,null,null,null,null,null,null,null,null,null,null,null,null,null,null,null,null,null,null,null,null,null,null,null,null,null,5]
[null,"FC2 (E6*)","CC2A","Membrane-Bound Organelles and Defining Characteristics of Eukaryotic Cells ","Yes","X","X","X",null,null,null,null,null,null,null,null,"x",null,null,null,null,null,null,null,null,null,null,null,null,null,null,null,"x",null,null,"x",null,null,null,null,null,"X",null,null,null,null,null,null,null,null,null,null,null,null,null,null,null,null,null,null,null,null,null,null,null,null,null,null,null,null,null,null,null,null,null,null,null,null,null,null,null,null,null,null,null,null,null,null,null,null,null,null,null,null,null,null,null,null,null,null,null,null,null,null,null,null,null,null,null,null,null,null,null,null,4]
[null,"FC2 (E6*)","CC2A","Cytoskeleton","Yes","X","X",null,null,null,null,null,null,null,null,null,"x",null,null,null,null,null,null,null,null,null,null,null,null,null,null,null,"x",null,null,"x",null,null,null,null,null,"X",null,null,null,null,null,null,null,null,null,null,null,null,null,null,null,null,null,null,null,null,null,null,null,null,null,null,null,null,null,null,null,null,null,null,null,null,null,null,null,null,null,null,null,null,null,null,null,null,null,null,null,null,null,null,null,null,null,null,null,null,null,null,null,null,null,null,null,null,null,null,null,null,4]
[null,"FC2 (E6*)","CC2A","Tissues Formed From Eukaryotic Cells","Yes","X","X",null,null,null,null,null,null,null,null,null,null," ",null,null,null,null,null,null,null,null,null,null,null,null,null,null,null,null,null,"x",null,null,null,null,null,"X",null,"x",null,null,null,null,null,null,null,null,null,null,null,null,null,null,null,null,null,null,null,null,null,null,null,null,null,null,null,null,null,null,null,null,null,null,null,null,null,null,null,null,null,null,null,null,null,null,null,null,null,null,null,null,null,null,null,null,null,null,null,null,null,null,null,null,null,null,null,null,null,null,4]
[null,"FC2 (E6*)","CC2B","Cell Theory","Yes",null,"X",null,null,null,null,null,null,null,null,null,"x",null,null,null,null,null,null,null,null,null,null,null,null,null,null,null,null,null,null,"x",null,null,null,null,null,null,null,null,null,null,null,null,null,null,null,null,null,null,null,null,null,null,null,null,null,null,null,null,null,null,null,null,null,null,null,null,null,null,null,null,null,null,null,null,null,null,null,null,null,null,null,null,null,null,null,null,null,null,null,null,null,null,null,null,null,null,null,null,null,null,null,null,null,null,null,null,null,null,{"$f":"COUNTA(P39:DJ39)","v":2}]
[null,"FC2 (E6*)","CC2B","Classification and Structure of Prokaryotic Cells","Yes","X","X",null,null,null,null,null,null,null,null,null,"x",null,null,null,null,null,null,null,null,null,null,null,null,null,null,null,null,"x",null,null,null,null,null,"x",null,null,null,null,null,null,null,null,null,null,null,null,null,null,null,null,null,null,null,null,null,null,null,null,null,null,null,null,null,null,null,null,null,null,null,null,null,null,null,null,null,null,null,null,null,null,null,null,null,null,null,null,null,null,null,null,null,null,null,null,null,null,null,null,null,null,null,null,null,null,null,null,null,null,3]
[null,"FC2 (E6*)","CC2B","Growth and Physiology of Prokaryotic Cells","Yes","X","X",null,null,null,null,null,null,null,null,null,"x",null,null,null,null,null,null,null,null,null,null,null,null,null,null,null,null,"x",null,null,null,null,null,"x",null,null,null,null,null,null,null,null,null,null,null,null,null,null,null,null,null,null,null,null,null,null,null,null,null,null,null,null,null,null,null,null,null,null,null,null,null,null,null,null,null,null,null,null,null,null,null,null,null,null,null,null,null,null,null,null,null,null,null,null,null,null,null,null,null,null,null,null,null,null,null,null,null,null,3]
[null,"FC2 (E6*)","CC2B","Genetics of Prokaryotic Cells","Yes","X","X",null,null,null,null,null,null,null,null,null,"x",null,null,null,null,null,null,null,null,null,null,null,null,null,"x",null,null,"x",null,null,null,null,null,"x",null,null,"x",null,null,null,null,null,null,null,null,null,null,null,null,null,null,null,null,null,null,null,null,null,null,null,null,null,null,null,null,null,null,null,null,null,null,null,null,null,null,null,null,null,null,null,null,null,null,null,null,null,null,null,null,null,null,null,null,null,null,null,null,null,null,null,null,null,null,null,null,null,null,null,5]
[null,"FC2 (E6*)","CC2B","Virus Structure","Yes","X","X",null,null,null,null,null,null,null,null,null,"x",null,null,null,null,null,null,null,null,null,null,null,null,null,null,null,null,"x",null,null,null,null,null,null,null,null,null,null,null,null,null,null,null,null,null,null,null,null,null,null,null,null,null,null,null,null,null,null,null,null,null,null,null,null,null,null,null,null,null,null,null,null,null,null,null,null,null,null,null,null,null,null,null,null,null,null,null,null,null,null,null,null,null,null,null,null,null,null,null,null,null,null,null,null,null,null,null,null,2]
[null,"FC2 (E6*)","CC2B","Viral Life Cycle ","Yes","X","X",null,null,null,null,null,null,null,null,null,"x",null,null,null,null,null,null,null,null,null,null,null,null,null,null,null,null,"x",null,null,null,null,null,null,null,null,null,null,null,null,null,null,null,null,null,null,null,null,null,null,null,null,null,null,null,null,null,null,null,null,null,null,null,null,null,null,null,null,null,null,null,null,null,null,null,null,null,null,null,null,null,null,null,null,null,null,null,null,null,null,null,null,null,null,null,null,null,null,null,null,null,null,null,null,null,null,null,null,2]
[null,"FC2 (E6*)","CC2C","Mitosis","Yes","X","X",null,null,null,null,null,null,null,null,null,"x",null,null,null,null,null,null,null,null,null,null,null,null,null,null,null,null,null,null,"x",null,null,null,null,null,null,"x","x",null,null,null,null,null,null,null,null,null,null,null,null,null,null,null,null,null,null,null,null,null,null,null,null,null,null,null,null,null,null,null,null,null,null,null,null,null,null,null,null,null,null,null,null,null,null,null,null,null,null,null,null,null,null,null,null,null,null,null,null,null,null,null,null,null,null,null,null,null,null,4]
[null,"FC2 (E6*)","CC2C","Biosignalling","Yes",null,null,"X",null,null,null,null,null,null,null,null,"x",null,null,null,null,null,"X",null,null,null,null,null,null,null,null,null,"x",null,null,"x",null,null,null,null,null,"X",null,null,null,null,null,null,null,null,null,null,null,null,null,null,null,null,null,null,null,null,null,null,null,null,null,null,null,null,null,null,null,null,null,null,null,null,null,null,null,null,null,null,null,null,null,null,null,null,null,null,null,null,null,null,null,null,null,null,null,null,null,null,null,null,null,null,null,null,null,null,null,null,5]
[null,"FC2 (E6*)","CC2C","Reproductive System","Yes","X","X",null,null,null,null,null,null,null,null,null,"x",null,null,null,null,null,null,null,null,null,null,null,null,null,null,null,null,null,null,null,"x",null,"x",null,null,"X",null,null,null,null,null,null,null,null,null,null,null,null,null,null,null,null,null,null,null,null,null,null,null,null,null,null,null,null,null,null,null,null,null,null,null,null,null,null,null,null,null,null,null,null,null,null,null,null,null,null,null,null,null,null,null,null,null,null,null,null,null,null,null,null,null,null,null,null,null,null,null,null,4]
[null,"FC2 (E6*)","CC2C","Embryogenesis","Yes","X","X",null,null,null,null,null,null,null,null,null,null,"x",null,null,null,null,null,null,null,null,null,null,null,null,null,null,null,null,null,null,"x",null,null,null,null,null,null,null,null,null,null,null,null,null,null,null,null,null,null,null,null,null,null,null,null,null,null,null,null,null,null,null,null,null,null,null,null,null,null,null,null,null,null,null,null,null,null,null,null,null,null,null,null,null,null,null,null,null,null,null,null,null,null,null,null,null,null,null,null,null,null,null,null,null,null,null,null,null,2]
[null,"FC2 (E6*)","CC2C","Mechanisms of Development","Yes","X","X",null,null,null,null,null,null,null,null,null,null,"x",null,null,null,null,null,null,null,null,null,null,null,null,null,null,null,null,null,null,"x",null,null,null,null,null,null,"x",null,null,null,null,null,null,null,null,null,null,null,null,null,null,null,null,null,null,null,null,null,null,null,null,null,null,null,null,null,null,null,null,null,null,null,null,null,null,null,null,null,null,null,null,null,null,null,null,null,null,null,null,null,null,null,null,null,null,null,null,null,null,null,null,null,null,null,null,null,null,3]
[null,"FC3 (E7*)","CC3A","Nervous System: Structure and Function","Yes","X","X",null,null,null,null,null,null,null,null,null,null,"x",null,null,null,null,null,null,null,null,null,null,null,null,null,null,null,null,null,"x",null,"x","x",null,null,"X",null,null,null,null,null,null,null,null,null,null,null,null,null,null,null,null,null,null,null,null,null,null,null,null,null,null,null,null,null,null,null,null,null,null,null,null,null,null,null,null,null,null,null,null,null,null,null,null,null,null,null,null,null,null,null,null,null,null,null,null,null,null,null,null,null,null,null,null,null,null,null,null,5]
[null,"FC3 (E7*)","CC3A","Nerve Cell","Yes","X","X",null,null,null,null,null,null,null,null,null,null,"x",null,null,null,null,null,null,null,null,null,null,null,null,null,null,null,null,null,"x",null,null,"x",null,null,"X",null,null,null,null,null,null,null,null,null,null,null,null,null,null,null,null,null,null,null,null,null,null,null,null,null,null,null,null,null,null,null,null,null,null,null,null,null,null,null,null,null,null,null,null,null,null,null,null,null,null,null,null,null,null,null,null,null,null,null,null,null,null,null,null,null,null,null,null,null,null,null,null,4]
[null,"FC3 (E7*)","CC3A","Electrochemistry","Yes","X",null,null,null,"X",null,null,null,null,null,null,null,"x",null,"X",null,null,null,null,null,null,null,null,null,null,null,null,"x",null,null,"x",null,null,"x",null,null,null,null,null,null,null,null,null,null,null,null,null,null,null,null,null,null,null,null,null,null,null,null,null,null,null,null,null,null,null,null,null,null,null,null,null,null,null,null,null,null,null,null,null,null,null,null,null,null,null,null,null,null,null,null,null,null,null,null,null,null,null,null,null,null,null,null,null,null,null,null,null,null,null,5]
[null,"FC3 (E7*)","CC3A","Biosignalling","Yes",null,null,"X",null,null,null,null,null,null,null,null,"x","x",null,null,null,null,null,null,null,null,null,null,null,null,null,null,"x",null,null,"x",null,null,"x",null,null,"X",null,null,null,null,null,null,null,null,null,null,null,null,null,null,null,null,null,null,null,null,null,null,null,null,null,null,null,null,null,null,null,null,null,null,null,null,null,null,null,null,null,null,null,null,null,null,null,null,null,null,null,null,null,null,null,null,null,null,null,null,null,null,null,null,null,null,null,null,null,null,null,null,6]
[null,"FC3 (E7*)","CC3A","Lipids","Yes","X",null,"X","X",null,null,null,null,null,null,null,"x",null,null,null,null,"X","X",null,null,null,null,null,null,null,null,null,"x",null,null,"x",null,null,null,null,null,null,null,"x",null,null,null,null,null,null,null,null,null,null,null,null,null,null,null,null,null,null,null,null,null,null,null,null,null,null,null,null,null,null,null,null,null,null,null,null,null,null,null,null,null,null,null,null,null,null,null,null,null,null,null,null,null,null,null,null,null,null,null,null,null,null,null,null,null,null,null,null,null,null,6]
[null,"FC3 (E7*)","CC3A","Endocrine System:  Hormones and Their Sources","Yes","X","X",null,null,null,null,null,null,null,null,null,null,null,null,null,null,null,null,null,null,null,null,null,null,null,null,null,null,null,null,null,"x",null,"x",null,null,"X",null,null,null,null,null,null,null,null,null,null,null,null,null,null,null,null,null,null,null,null,null,null,null,null,null,null,null,null,null,null,null,null,null,null,null,null,null,null,null,null,null,null,null,null,null,null,null,null,null,null,null,null,null,null,null,null,null,null,null,null,null,null,null,null,null,null,null,null,null,null,null,null,3]
[null,"FC3 (E7*)","CC3A","Endocrine System: Mechanisms of Hormone Action","Yes","X","X",null,null,null,null,null,null,null,null,null,null,null,null,null,null,null,null,null,null,null,null,null,null,null,null,null,null,null,null,null,"x",null,null,null,null,"X",null,null,null,null,null,null,null,null,null,null,null,null,null,null,null,null,null,null,null,null,null,null,null,null,null,null,null,null,null,null,null,null,null,null,null,null,null,null,null,null,null,null,null,null,null,null,null,null,null,null,null,null,null,null,null,null,null,null,null,null,null,null,null,null,null,null,null,null,null,null,null,null,2]
[null,"FC3 (E7*)","CC3B","Respiratory System ","Yes","X","X",null,null,"X",null,null,null,null,null,null,null,"x",null,null,null,null,null,null,null,null,null,null,null,null,null,null,null,null,null,null,"x","x","x",null,null,"X",null,null,null,null,null,null,null,null,null,null,null,null,null,null,null,null,null,null,null,null,null,null,null,null,null,null,null,null,null,null,null,null,null,null,null,null,null,null,null,null,null,null,null,null,null,null,null,null,null,null,null,null,null,null,null,null,null,null,null,null,null,null,null,null,null,null,null,null,null,null,null,null,5]
[null,"FC3 (E7*)","CC3B","Circulatory System","Yes","X","X",null,null,null,null,null,null,null,null,null,null,"x",null,null,null,null,null,null,null,null,null,null,null,null,null,null,null,null,null,null,"x","x","x",null,null,"X",null,null,null,null,null,null,null,null,null,null,null,null,null,null,null,null,null,null,null,null,null,null,null,null,null,null,null,null,null,null,null,null,null,null,null,null,null,null,null,null,null,null,null,null,null,null,null,null,null,null,null,null,null,null,null,null,null,null,null,null,null,null,null,null,null,null,null,null,null,null,null,null,5]
[null,"FC3 (E7*)","CC3B","Lymphatic System","Yes","X","X",null,null,null,null,null,null,null,null,null,null,null,null,null,null,null,null,null,null,null,null,null,null,null,null,null,null,null,null,null,"x","x",null,null,null,"X",null,null,null,null,null,null,null,null,null,null,null,null,null,null,null,null,null,null,null,null,null,null,null,null,null,null,null,null,null,null,null,null,null,null,null,null,null,null,null,null,null,null,null,null,null,null,null,null,null,null,null,null,null,null,null,null,null,null,null,null,null,null,null,null,null,null,null,null,null,null,null,null,3]
[null,"FC3 (E7*)","CC3B","Immune System","Yes","X","X",null,null,null,null,null,null,null,null,null,null,"x",null,null,null,null,null,null,null,null,null,null,null,null,null,null,null,null,null,null,"x",null,null,null,null,"X",null,null,null,null,null,null,null,null,null,null,null,null,null,null,null,null,null,null,null,null,null,null,null,null,null,null,null,null,null,null,null,null,null,null,null,null,null,null,null,null,null,null,null,null,null,null,null,null,null,null,null,null,null,null,null,null,null,null,null,null,null,null,null,null,null,null,null,null,null,null,null,null,3]
[null,"FC3 (E7*)","CC3B","Digestive System","Yes","X","X",null,null,null,null,null,null,null,null,null,null,null,null,null,null,null,null,null,null,null,null,null,null,null,null,null,null,null,null,null,"x","x","x",null,null,"X",null,null,null,null,null,null,null,null,null,null,null,null,null,null,null,null,null,null,null,null,null,null,null,null,null,null,null,null,null,null,null,null,null,null,null,null,null,null,null,null,null,null,null,null,null,null,null,null,null,null,null,null,null,null,null,null,null,null,null,null,null,null,null,null,null,null,null,null,null,null,null,null,4]
[null,"FC3 (E7*)","CC3B","Excretory System","Yes","X","X",null,null,null,null,null,null,null,null,null,null,"x",null,null,null,null,null,null,null,null,null,null,null,null,null,null,null,null,null,null,"x","x","x",null,null,"X",null,null,null,null,null,null,null,null,null,null,null,null,null,null,null,null,null,null,null,null,null,null,null,null,null,null,null,null,null,null,null,null,null,null,null,null,null,null,null,null,null,null,null,null,null,null,null,null,null,null,null,null,null,null,null,null,null,null,null,null,null,null,null,null,null,null,null,null,null,null,null,null,5]
[null,"FC3 (E7*)","CC3B","Reproductive System","Yes","X","X",null,null,null,null,null,null,null,null,null,null,null,null,null,null,null,null,null,null,null,null,null,null,null,null,null,null,null,null,null,"x","x","x",null,null,"X",null,null,null,null,null,null,null,null,null,null,null,null,null,null,null,null,null,null,null,null,null,null,null,null,null,null,null,null,null,null,null,null,null,null,null,null,null,null,null,null,null,null,null,null,null,null,null,null,null,null,null,null,null,null,null,null,null,null,null,null,null,null,null,null,null,null,null,null,null,null,null,null,4]
[null,"FC3 (E7*)","CC3B","Muscle System","Yes","X","X",null,null,null,null,null,null,null,null,null,null,"x",null,null,null,null,null,null,null,null,null,null,null,null,null,null,null,null,null,"x",null,"x","x",null,null,"X",null,"x",null,null,null,null,null,null,null,null,null,null,null,null,null,null,null,null,null,null,null,null,null,null,null,null,null,null,null,null,null,null,null,null,null,null,null,null,null,null,null,null,null,null,null,null,null,null,null,null,null,null,null,null,null,null,null,null,null,null,null,null,null,null,null,null,null,null,null,null,null,null,6]
[null,"FC3 (E7*)","CC3B","Specialized Cell-Muscle Cell","Yes","X","X",null,null,null,null,null,null,null,null,null,null,"x",null,null,null,null,null,null,null,null,null,null,null,null,null,null,null,null,null,"x",null,"x","x",null,null,"X",null,null,null,null,null,null,null,null,null,null,null,null,null,null,null,null,null,null,null,null,null,null,null,null,null,null,null,null,null,null,null,null,null,null,null,null,null,null,null,null,null,null,null,null,null,null,null,null,null,null,null,null,null,null,null,null,null,null,null,null,null,null,null,null,null,null,null,null,null,null,null,null,5]
[null,"FC3 (E7*)","CC3B","Skeletal System","Yes","X","X",null,null,null,null,null,null,null,null,null,null,"x",null,null,null,null,null,null,null,null,null,null,null,null,null,null,null,null,null,"x",null,"x",null,null,null,null,null,null,null,null,null,null,null,null,null,null,null,null,null,null,null,null,null,null,null,null,null,null,null,null,null,null,null,null,null,null,null,null,null,null,null,null,null,null,null,null,null,null,null,null,null,null,null,null,null,null,null,null,null,null,null,null,null,null,null,null,null,null,null,null,null,null,null,null,null,null,null,null,3]
[null,"FC3 (E7*)","CC3B","Skin System","Yes","X","X",null,null,null,null,null,null,null,null,null,null,null,null,null,null,null,null,null,null,null,null,null,null,null,null,null,null,null,null,"x",null,"x",null,null,null,"X",null,null,null,null,null,null,null,null,null,null,null,null,null,null,null,null,null,null,null,null,null,null,null,null,null,null,null,null,null,null,null,null,null,null,null,null,null,null,null,null,null,null,null,null,null,null,null,null,null,null,null,null,null,null,null,null,null,null,null,null,null,null,null,null,null,null,null,null,null,null,null,null,3]
[null,"FC4 (E3*)","CC4A","Translational Motion","Yes","X",null,null,null,null,"X",null,null,null,null,null,null,null,null,null,null,null,null,null,null,null,"X",null,"X",null,null,null,null,null,null,null,null,null,null,null,null,null,null,null,null,null,null,null,null,null,null,null,null,null,null,null,null,null,null,null,null,null,null,null,null,null,null,null,null,null,null,null,null,null,null,null,null,null,null,null,null,null,null,null,null,null,null,null,null,null,null,null,null,null,null,null,null,null,null,null,null,null,null,null,null,null,null,null,null,null,null,null,null,null,2]
[null,"FC4 (E3*)","CC4A","Force","Yes","X",null,null,null,null,"X",null,null,null,null,null,null,null,null,null,null,null,null,null,null,null,"X",null,"X"]
[null,"FC4 (E3*)","CC4A","Equilibrium","Yes","X",null,null,null,null,"X",null,null,null,null,null,null,null,null,"X",null,null,null,null,null,null,"X",null,"X",null,null,null,null,null,null,null,null,null,null,null,null,"X",null,null,null,null,null,null,null,null,null,null,null,null,null,null,null,null,null,null,null,null,null,null,null,null,null,null,null,null,null,null,null,null,null,null,null,null,null,null,null,null,null,null,null,null,null,null,null,null,null,null,null,null,null,null,null,null,null,null,null,null,null,null,null,null,null,null,null,null,null,null,null,null,{"$f":"COUNTA(P70:DJ70)","v":4}]
[null,"FC4 (E3*)","CC4A","Work","Yes","X",null,null,null,null,"X",null,null,null,null,null,null,null,"X",null,null,null,null,null,null,null,"X",null,"X",null,null,null,null,null,null,null,null,null,null,null,null,"X",null,null,null,null,null,null,null,null,null,null,null,null,null,null,null,null,null,null,null,null,null,null,null,null,null,null,null,null,null,null,null,null,null,null,null,null,null,null,null,null,null,null,null,null,null,null,null,null,null,null,null,null,null,null,null,null,null,null,null,null,null,null,null,null,null,null,null,null,null,null,null,null,4]
[null,"FC4 (E3*)","CC4A","Energy of Point Object Systems","Yes","X",null,null,null,null,"X",null,null,null,null,null,null,null,null,null,null,null,null,null,null,null,"X",null,"X",null,null,null,null,null,null,null,null,null,null,null,null,null,null,null,null,null,null,null,null,null,null,null,null,null,null,null,null,null,null,null,null,null,null,null,null,null,null,null,null,null,null,null,null,null,null,null,null,null,null,null,null,null,null,null,null,null,null,null,null,null,null,null,null,null,null,null,null,null,null,null,null,null,null,null,null,null,null,null,null,null,null,null,null,null,2]
[null,"FC4 (E3*)","CC4A","Periodic Motion","Yes","X",null,null,null,null,"X",null,null,null,null,null,null,null,null,null,null,null,null,null,null,null,"X",null,"X",null,null,null,null,null,null,null,null,null,null,null,null,null,null,null,null,null,null,null,null,null,null,null,null,null,null,null,null,null,null,null,null,null,null,null,null,null,null,null,null,null,null,null,null,null,null,null,null,null,null,null,null,null,null,null,null,null,null,null,null,null,null,null,null,null,null,null,null,null,null,null,null,null,null,null,null,null,null,null,null,null,null,null,null,null,2]
[null,"FC4 (E3*)","CC4B","Fluids",{"$f":"IF(DK74>0,\"Yes\",\"NO!\")","v":"Yes"},"X",null,null,null,null,"X",null,null,null,null,null,null,null,null,null,null,null,null,null,null,null,"x",null,null,null,null,null,null,null,null,null,"x",null,null,null,null,"X",null,null,null,null,null,null,null,null,null,null,null,null,null,null,null,null,null,null,null,null,null,null,null,null,null,null,null,null,null,null,null,null,null,null,null,null,null,null,null,null,null,null,null,null,null,null,null,null,null,null,null,null,null,null,null,null,null,null,null,null,null,null,null,null,null,null,null,null,null,null,null,null,3]
[null,"FC4 (E3*)","CC4B","Circulatory System","Yes","X","X",null,null,null,null,null,null,null,null,null,null,null,null,null,null,null,null,null,null,null,null,null,null,null,null,null,null,null,null,null,"x","x","x",null,null,"X",null,null,null,null,null,null,null,null,null,null,null,null,null,null,null,null,null,null,null,null,null,null,null,null,null,null,null,null,null,null,null,null,null,null,null,null,null,null,null,null,null,null,null,null,null,null,null,null,null,null,null,null,null,null,null,null,null,null,null,null,null,null,null,null,null,null,null,null,null,null,null,null,4]
[null,"FC4 (E3*)","CC4B","Gas Phase","Yes","X",null,null,null,"X","X",null,null,null,null,null,null,null,"X",null,null,null,null,null,null,null,null,"X",null,"X",null,null,null,null,null,null,null,null,null,null,null,"X",null,null,null,null,null,null,null,null,null,null,null,null,null,null,null,null,null,null,null,null,null,null,null,null,null,null,null,null,null,null,null,null,null,null,null,null,null,null,null,null,null,null,null,null,null,null,null,null,null,null,null,null,null,null,null,null,null,null,null,null,null,null,null,null,null,null,null,null,null,null,null,null,4]
[null,"FC4 (E3*)","CC4C","Electrostatics","Yes","X",null,null,null,null,"X",null,null,null,null,null,null,null,null,null,null,null,null,null,null,null,null,"X",null,"X",null,null,null,null,null,null,null,null,null,null,null,null,null,null,null,null,null,null,null,null,null,null,null,null,null,null,null,null,null,null,null,null,null,null,null,null,null,null,null,null,null,null,null,null,null,null,null,null,null,null,null,null,null,null,null,null,null,null,null,null,null,null,null,null,null,null,null,null,null,null,null,null,null,null,null,null,null,null,null,null,null,null,null,null,2]
[null,"FC4 (E3*)","CC4C","Circuit Elements","Yes","X",null,null,null,null,"X",null,null,null,null,null,null,null,null,null,null,null,null,null,null,null,null,"X",null,"X",null,null,null,null,null,null,null,null,null,null,null,null,null,null,null,null,null,null,null,null,null,null,null,null,null,null,null,null,null,null,null,null,null,null,null,null,null,null,null,null,null,null,null,null,null,null,null,null,null,null,null,null,null,null,null,null,null,null,null,null,null,null,null,null,null,null,null,null,null,null,null,null,null,null,null,null,null,null,null,null,null,null,null,null,2]
[null,"FC4 (E3*)","CC4C","Magnetism","Yes","X",null,null,null,null,"X",null,null,null,null,null,null,null,null,null,null,null,null,null,null,null,null,"X",null,"X"]
[null,"FC4 (E3*)","CC4C","Electrochemistry","Yes","X",null,null,null,"X",null,null,null,null,null,null,null,null,null,"X",null,null,null,null,null,null,null,null,null,null,null,null,null,null,null,null,"x",null,null,null,null,null,null,null,null,null,null,null,null,null,null,null,null,null,null,null,null,null,null,null,null,null,null,null,null,null,null,null,null,null,null,null,null,null,null,null,null,null,null,null,null,null,null,null,null,null,null,null,null,null,null,null,null,null,null,null,null,null,null,null,null,null,null,null,null,null,null,null,null,null,null,null,null,null,{"$f":"COUNTA(P80:DJ80)","v":2}]
[null,"FC4 (E3*)","CC4C","Specialized Cell - Nerve Cell","Yes","X","X",null,null,null,null,null,null,null,null,null,null,"x",null,null,null,null,null,null,null,null,null,null,null,null,null,null,null,null,null,null,"x","x","x",null,null,"X",null,null,null,null,null,null,null,null,null,null,null,null,null,null,null,null,null,null,null,null,null,null,null,null,null,null,null,null,null,null,null,null,null,null,null,null,null,null,null,null,null,null,null,null,null,null,null,null,null,null,null,null,null,null,null,null,null,null,null,null,null,null,null,null,null,null,null,null,null,null,null,null,5]
[null,"FC4 (E3*)","CC4D","Sound","Yes","X",null,null,null,null,"X",null,null,null,null,null,null,null,null,null,null,null,null,null,null,null,null,"X",null,"X",null,null,null,null,null,null,null,null,null,null,null,null,null,null,null,null,null,null,null,null,null,null,null,null,null,null,null,null,null,null,null,null,null,null,null,null,null,null,null,null,null,null,null,null,null,null,null,null,null,null,null,null,null,null,null,null,null,null,null,null,null,null,null,null,null,null,null,null,null,null,null,null,null,null,null,null,null,null,null,null,null,null,null,null,2]
[null,"FC4 (E3*)","CC4D","Light, Electromagnetic Radiation","Yes","X",null,null,null,null,"X",null,null,null,null,null,null,null,"X",null,null,null,null,null,null,null,null,null,null,null,null,null,null,null,null,null,null,null,null,null,null,null,null,null,null,null,null,null,null,null,null,null,null,null,null,null,null,null,null,null,null,null,null,null,null,null,null,null,null,null,null,null,null,null,null,null,null,null,null,null,null,null,null,null,null,null,null,null,null,null,null,null,null,null,null,null,null,null,null,null,null,null,null,null,null,null,null,null,null,null,null,null,null,null,1]
[null,"FC4 (E3*)","CC4D","Molecular Structure and Absorption Spectra","Yes","X",null,null,"X","X",null,null,null,null,null,null,null,null,"X",null,null,null,null,null,null,null,null,null,null,null,null,null,null,null,null,null,null,null,null,null,null,null,null,null,null,null,null,null,null,null,null,null,null,null,null,null,null,null,null,null,null,null,null,null,null,null,null,null,null,null,null,null,null,null,null,null,null,null,null,null,null,null,null,null,null,null,null,null,null,null,null,null,null,null,null,null,null,null,null,null,null,null,null,null,null,null,null,null,null,null,null,null,null,null,1]
[null,"FC4 (E3*)","CC4D","Geometrical Optics","Yes","X",null,null,null,null,"X",null,null,null,null,null,null,null,null,null,null,null,null,null,null,null,null,"X",null,"X",null,null,null,null,null,null,null,null,null,null,null,null,null,null,null,null,null,null,null,null,null,null,null,null,null,null,null,null,null,null,null,null,null,null,null,null,null,null,null,null,null,null,null,null,null,null,null,null,null,null,null,null,null,null,null,null,null,null,null,null,null,null,null,null,null,null,null,null,null,null,null,null,null,null,null,null,null,null,null,null,null,null,null,null,2]
[null,"FC4 (E3*)","CC4E","Atomic Nucleus","Yes","X",null,null,null,"X","X",null,null,null,null,null,"x",null,"X",null,null,null,null,null,null,null,null,null,null,null,null,null,null,null,null,"x",null,null,null,null,null,null,null,null,null,null,null,null,null,null,null,null,null,null,null,null,null,null,null,null,null,null,null,null,null,null,null,null,null,null,null,null,null,null,null,null,null,null,null,null,null,null,null,null,null,null,null,null,null,null,null,null,null,null,null,null,null,null,null,null,null,null,null,null,null,null,null,null,null,null,null,null,null,null,3]
[null,"FC4 (E3*)","CC4E","Electronic Structure","Yes","X",null,null,null,"X","X",null,null,null,null,null,null,null,"X",null,null,null,null,null,null,null,null,null,null,null,null,null,null,null,null,null,null,null,null,null,null,null,null,null,null,null,null,null,null,null,null,null,null,null,null,null,null,null,null,null,null,null,null,null,null,null,null,null,null,null,null,null,null,null,null,null,null,null,null,null,null,null,null,null,null,null,null,null,null,null,null,null,null,null,null,null,null,null,null,null,null,null,null,null,null,null,null,null,null,null,null,null,null,null,1]
[null,"FC4 (E3*)","CC4E","The Periodic Table - Classification of Elements into Groups by Electronic Structure","Yes","X",null,null,null,"X",null,null,null,null,null,null,null,null,"X",null,null,null,null,null,null,null,null,null,null,null,null,null,null,null,null,null,null,null,null,null,null,null,null,null,null,null,null,null,null,null,null,null,null,null,null,null,null,null,null,null,null,null,null,null,null,null,null,null,null,null,null,null,null,null,null,null,null,null,null,null,null,null,null,null,null,null,null,null,null,null,null,null,null,null,null,null,null,null,null,null,null,null,null,null,null,null,null,null,null,null,null,null,null,null,1]
[null,"FC4 (E3*)","CC4E","The Periodic Table - Variations of Chemical Properties with Group and Row","Yes","X",null,null,null,"X",null,null,null,null,null,null,null,null,"X",null,null,null,null,null,null,null,null,null,null,null,null,null,null,null,null,null,null,null,null,null,null,null,null,null,null,null,null,null,null,null,null,null,null,null,null,null,null,null,null,null,null,null,null,null,null,null,null,null,null,null,null,null,null,null,null,null,null,null,null,null,null,null,null,null,null,null,null,null,null,null,null,null,null,null,null,null,null,null,null,null,null,null,null,null,null,null,null,null,null,null,null,null,null,null,1]
[null,"FC4 (E3*)","CC4E","Stoichiometry","Yes","X",null,null,null,"X",null,null,null,null,null,null,null,null,"X",null,null,null,null,null,null,null,null,null,null,null,null,null,null,null,null,null,null,null,null,null,null,"X",null,null,null,null,null,null,null,null,null,null,null,null,null,null,null,null,null,null,null,null,null,null,null,null,null,null,null,null,null,null,null,null,null,null,null,null,null,null,null,null,null,null,null,null,null,null,null,null,null,null,null,null,null,null,null,null,null,null,null,null,null,null,null,null,null,null,null,null,null,null,null,null,2]
[null,"FC5 (E4*)","CC5A","Acid/Base Equilibria","Yes","X",null,"X",null,"X",null,null,null,null,null,null,null,null,null,"X",null,null,null,null,null,null,null,null,null,null,null,null,null,null,null,null,null,null,null,null,null,"X",null,null,null,null,null,null,null,null,null,null,null,null,null,null,null,null,null,null,null,null,null,null,null,null,null,null,null,null,null,null,null,null,null,null,null,null,null,null,null,null,null,null,null,null,null,null,null,null,null,null,null,null,null,null,null,null,null,null,null,null,null,null,null,null,null,null,null,null,null,null,null,null,2]
[null,"FC5 (E4*)","CC5A","Ions in Solutions","Yes","X",null,"X",null,"X",null,null,null,null,null,null,null,null,null,"X",null,null,null,null,null,null,null,null,null,null,null,null,null,null,null,null,null,null,null,null,null,"X",null,null,null,null,null,null,null,null,null,null,null,null,null,null,null,null,null,null,null,null,null,null,null,null,null,null,null,null,null,null,null,null,null,null,null,null,null,null,null,null,null,null,null,null,null,null,null,null,null,null,null,null,null,null,null,null,null,null,null,null,null,null,null,null,null,null,null,null,null,null,null,null,2]
[null,"FC5 (E4*)","CC5A","Solubility","Yes","X",null,null,null,"X",null,null,null,null,null,null,null,null,null,"X",null,null,null,null,null,null,null,null,null,null,null,null,null,null,null,null,null,null,null,null,null,"X",null,null,null,null,null,null,null,null,null,null,null,null,null,null,null,null,null,null,null,null,null,null,null,null,null,null,null,null,null,null,null,null,null,null,null,null,null,null,null,null,null,null,null,null,null,null,null,null,null,null,null,null,null,null,null,null,null,null,null,null,null,null,null,null,null,null,null,null,null,null,null,null,2]
[null,"FC5 (E4*)","CC5A","Titration","Yes","X",null,null,null,"X",null,null,null,null,null,null,null,null,null,"X",null,null,null,null,null,null,null,null,null,null,null,null,null,null,null,null,null,null,null,null,null,"X",null,null,null,null,null,null,null,null,null,null,null,null,null,null,null,null,null,null,null,null,null,null,null,null,null,null,null,null,null,null,null,null,null,null,null,null,null,null,null,null,null,null,null,null,null,null,null,null,null,null,null,null,null,null,null,null,null,null,null,null,null,null,null,null,null,null,null,null,null,null,null,null,2]
[null,"FC5 (E4*)","CC5B","Covalent Bond","Yes","X",null,null,"X","X",null,null,null,null,null,null,null,null,"X",null,"X","X","X",null,null,null,null,null,null,null,null,null,null,null,null,null,null,null,null,null,null,null,null,null,null,null,null,null,null,null,null,null,null,null,null,null,null,null,null,null,null,null,null,null,null,null,null,null,null,null,null,null,null,null,null,null,null,null,null,null,null,null,null,null,null,null,null,null,null,null,null,null,null,null,null,null,null,null,null,null,null,null,null,null,null,null,null,null,null,null,null,null,null,null,4]
[null,"FC5 (E4*)","CC5B","Liquid Phase - Intermolecular Forces","Yes","X",null,null,null,"X",null,null,null,null,null,null,null,null,"X","X","X","X","X",null,null,null,null,null,null,null,null,null,null,null,null,null,null,null,null,null,null,null,null,null,null,null,null,null,null,null,null,null,null,null,null,null,null,null,null,null,null,null,null,null,null,null,null,null,null,null,null,null,null,null,null,null,null,null,null,null,null,null,null,null,null,null,null,null,null,null,null,null,null,null,null,null,null,null,null,null,null,null,null,null,null,null,null,null,null,null,null,null,null,null,5]
[null,"FC5 (E4*)","CC5C","Separations and Purifications","Yes","X",null,"X","X",null,null,null,null,null,null,null,null,null,null,null,null,null,"X",null,null,null,null,null,null,null,null,null,null,null,null,null,null,null,null,null,null,null,null,null,null,null,null,null,null,null,null,null,null,null,null,null,null,null,null,null,null,null,null,null,null,null,null,null,null,null,null,null,null,null,null,null,null,null,null,null,null,null,null,null,null,null,null,null,null,null,null,null,null,null,null,null,null,null,null,null,null,null,null,null,null,null,null,null,null,null,null,null,null,null,1]
[null,"FC5 (E4*)","CC5D","Nucleotides and Nucleic Acids","Yes",null,"X","X",null,null,null,null,null,null,null,null,"x",null,null,null,null,"X","X",null,null,null,null,null,null,null,"x",null,"x",null,null,"x",null,null,null,null,null,null,null,null,null,null,null,null,null,null,null,null,null,null,null,null,null,null,null,null,null,null,null,null,null,null,null,null,null,null,null,null,null,null,null,null,null,null,null,null,null,null,null,null,null,null,null,null,null,null,null,null,null,null,null,null,null,null,null,null,null,null,null,null,null,null,null,null,null,null,null,null,null,null,6]
[null,"FC5 (E4*)","CC5D","Amino Acids, Peptides, Proteins","Yes","X",null,"X","X",null,null,null,null,null,null,null,"x",null,null,null,null,"X","X",null,null,null,null,null,null,null,null,null,"x",null,null,"x",null,null,null,null,null,null,null,null,null,null,null,null,null,null,null,null,null,null,null,null,null,null,null,null,null,null,null,null,null,null,null,null,null,null,null,null,null,null,null,null,null,null,null,null,null,null,null,null,null,null,null,null,null,null,null,null,null,null,null,null,null,null,null,null,null,null,null,null,null,null,null,null,null,null,null,null,null,null,5]
[null,"FC5 (E4*)","CC5D","The Three-Dimensional Protein Structure","Yes",null,null,"X",null,null,null,null,null,null,null,null,"x",null,null,null,null,null,"X",null,null,null,null,null,null,null,null,null,"x",null,null,"x",null,null,null,null,null,null,null,null,null,null,null,null,null,null,null,null,null,null,null,null,null,null,null,null,null,null,null,null,null,null,null,null,null,null,null,null,null,null,null,null,null,null,null,null,null,null,null,null,null,null,null,null,null,null,null,null,null,null,null,null,null,null,null,null,null,null,null,null,null,null,null,null,null,null,null,null,null,null,4]
[null,"FC5 (E4*)","CC5D","Non-Enzymatic Protein Function ","Yes",null,null,"X",null,null,null,null,null,null,null,null,"x",null,null,null,null,null,"X",null,null,null,null,null,null,null,null,null,"x",null,null,"x",null,null,null,null,null,null,null,null,null,null,null,null,null,null,null,null,null,null,null,null,null,null,null,null,null,null,null,null,null,null,null,null,null,null,null,null,null,null,null,null,null,null,null,null,null,null,null,null,null,null,null,null,null,null,null,null,null,null,null,null,null,null,null,null,null,null,null,null,null,null,null,null,null,null,null,null,null,null,4]
[null,"FC5 (E4*)","CC5D","Lipids","Yes","X",null,"X","X",null,null,null,null,null,null,null,"x",null,null,null,null,"X","X",null,null,null,null,null,null,null,null,null,"x",null,null,"x",null,null,null,null,null,null,null,null,null,null,null,null,null,null,null,null,null,null,null,null,null,null,null,null,null,null,null,null,null,null,null,null,null,null,null,null,null,null,null,null,null,null,null,null,null,null,null,null,null,null,null,null,null,null,null,null,null,null,null,null,null,null,null,null,null,null,null,null,null,null,null,null,null,null,null,null,null,null,5]
[null,"FC5 (E4*)","CC5D","Carbohydrates","Yes","X",null,"X","X",null,null,null,null,null,null,null,"x",null,null,null,null,"X","X",null,null,null,null,null,null,null,null,null,"x",null,null,"x",null,null,null,null,null,null,null,null,null,null,null,null,null,null,null,null,null,null,null,null,null,null,null,null,null,null,null,null,null,null,null,null,null,null,null,null,null,null,null,null,null,null,null,null,null,null,null,null,null,null,null,null,null,null,null,null,null,null,null,null,null,null,null,null,null,null,null,null,null,null,null,null,null,null,null,null,null,null,5]
[null,"FC5 (E4*)","CC5D","Aldehydes and Ketones","Yes","X",null,null,"X",null,null,null,null,null,null,null,null,null,null,null,null,"X",null,null,null,null,null,null,null,null,null,null,null,null,null,null,null,null,null,null,null,null,null,null,null,null,null,null,null,null,null,null,null,null,null,null,null,null,null,null,null,null,null,null,null,null,null,null,null,null,null,null,null,null,null,null,null,null,null,null,null,null,null,null,null,null,null,null,null,null,null,null,null,null,null,null,null,null,null,null,null,null,null,null,null,null,null,null,null,null,null,null,null,null,1]
[null,"FC5 (E4*)","CC5D","Alcohols","Yes","X",null,null,"X",null,null,null,null,null,null,null,null,null,null,null,"X",null,null,null,null,null,null,null,null,null,null,null,null,null,null,null,null,null,null,null,null,null,null,null,null,null,null,null,null,null,null,null,null,null,null,null,null,null,null,null,null,null,null,null,null,null,null,null,null,null,null,null,null,null,null,null,null,null,null,null,null,null,null,null,null,null,null,null,null,null,null,null,null,null,null,null,null,null,null,null,null,null,null,null,null,null,null,null,null,null,null,null,null,null,1]
[null,"FC5 (E4*)","CC5D","Carboxylic Acids","Yes","X",null,null,"X",null,null,null,null,null,null,null,null,null,null,null,null,"X",null,null,null,null,null,null,null,null,null,null,null,null,null,null,null,null,null,null,null,null,null,null,null,null,null,null,null,null,null,null,null,null,null,null,null,null,null,null,null,null,null,null,null,null,null,null,null,null,null,null,null,null,null,null,null,null,null,null,null,null,null,null,null,null,null,null,null,null,null,null,null,null,null,null,null,null,null,null,null,null,null,null,null,null,null,null,null,null,null,null,null,null,1]
[null,"FC5 (E4*)","CC5D","Acid Derivatives (Anhydrides, Amides, Esters)","Yes","X",null,null,"X",null,null,null,null,null,null,null,null,null,null,null,null,"X",null,null,null,null,null,null,null,null,null,null,null,null,null,null,null,null,null,null,null,null,null,null,null,null,null,null,null,null,null,null,null,null,null,null,null,null,null,null,null,null,null,null,null,null,null,null,null,null,null,null,null,null,null,null,null,null,null,null,null,null,null,null,null,null,null,null,null,null,null,null,null,null,null,null,null,null,null,null,null,null,null,null,null,null,null,null,null,null,null,null,null,null,1]
[null,"FC5 (E4*)","CC5D","Phenols","Yes",null,null,"X","X",null,null,null,null,null,null,null,null,null,null,null,null,"X",null,null,null,null,null,null,null,null,null,null,null,null,null,null,null,null,null,null,null,null,null,null,null,null,null,null,null,null,null,null,null,null,null,null,null,null,null,null,null,null,null,null,null,null,null,null,null,null,null,null,null,null,null,null,null,null,null,null,null,null,null,null,null,null,null,null,null,null,null,null,null,null,null,null,null,null,null,null,null,null,null,null,null,null,null,null,null,null,null,null,null,null,1]
[null,"FC5 (E4*)","CC5D","Polycyclic and Heterocyclic Aromatic Compounds","Yes",null,null,"X","X",null,null,null,null,null,null,null,null,null,null,null,null,"X",null,null,null,null,null,null,null,null,null,null,null,null,null,null,null,null,null,null,null,null,null,null,null,null,null,null,null,null,null,null,null,null,null,null,null,null,null,null,null,null,null,null,null,null,null,null,null,null,null,null,null,null,null,null,null,null,null,null,null,null,null,null,null,null,null,null,null,null,null,null,null,null,null,null,null,null,null,null,null,null,null,null,null,null,null,null,null,null,null,null,null,null,1]
[null,"FC5 (E4*)","CC5E","Enzymes","Yes","X","X","X",null,null,null,null,null,null,null,null,null,null,null,null,null,null,"X",null,null,null,null,null,null,null,null,null,null,null,null,null,null,null,null,null,null,"X",null,null,null,null,null,null,null,null,null,null,null,null,null,null,null,null,null,null,null,null,null,null,null,null,null,null,null,null,null,null,null,null,null,null,null,null,null,null,null,null,null,null,null,null,null,null,null,null,null,null,null,null,null,null,null,null,null,null,null,null,null,null,null,null,null,null,null,null,null,null,null,null,2]
[null,"FC5 (E4*)","CC5E","Principles of Bioenergetics","Yes",null,null,"X",null,null,null,null,null,null,null,null,null,null,null,null,null,null,"X",null,null,null,null,null,null,null,null,null,"x","x",null,"x",null,null,null,null,null,"X",null,null,null,null,null,null,null,null,null,null,null,null,null,null,null,null,null,null,null,null,null,null,null,null,null,null,null,null,null,null,null,null,null,null,null,null,null,null,null,null,null,null,null,null,null,null,null,null,null,null,null,null,null,null,null,null,null,null,null,null,null,null,null,null,null,null,null,null,null,null,null,null,5]
[null,"FC5 (E4*)","CC5E","Energy Changes in Chemical Reactions - Thermochemistry, Thermodynamics","Yes","X",null,null,null,"X","X",null,null,null,null,null,null,null,null,"X",null,null,null,null,null,null,null,null,null,null,null,null,null,null,null,null,null,null,null,null,null,null,null,null,null,null,null,null,null,null,null,null,null,null,null,null,null,null,null,null,null,null,null,null,null,null,null,null,null,null,null,null,null,null,null,null,null,null,null,null,null,null,null,null,null,null,null,null,null,null,null,null,null,null,null,null,null,null,null,null,null,null,null,null,null,null,null,null,null,null,null,null,null,null,{"$f":"COUNTA(P112:DJ112)","v":1}]
[null,"FC5 (E4*)","CC5E","Rate Processes in Chemical Reactions - Kinetics and Equilibrium","Yes","X",null,null,null,"X",null,null,null,null,null,null,null,null,null,"X",null,null,null,null,null,null,null,null,null,null,null,null,null,null,null,null,null,null,null,null,null,null,null,null,null,null,null,null,null,null,null,null,null,null,null,null,null,null,null,null,null,null,null,null,null,null,null,null,null,null,null,null,null,null,null,null,null,null,null,null,null,null,null,null,null,null,null,null,null,null,null,null,null,null,null,null,null,null,null,null,null,null,null,null,null,null,null,null,null,null,null,null,null,null,1]
[null,"FC6","CC6A","Sensory Processing ","Yes","X","X",null,null,null,null,"X",null,null,"X",null,null,"x",null,null,null,null,null,null,null,null,null,null,null,null,null,null,null,null,null,"x",null,null,"x",null,null,"X",null,null,null,null,null,null,null,null,null,null,null,null,null,null,null,null,null,null,null,null,null,null,null,null,null,null,null,null,null,null,null,null,null,null,null,null,null,null,null,null,null,null,null,null,null,null,null,null,null,null,null,null,null,null,null,null,null,null,null,null,null,null,null,null,null,null,null,null,null,null,null,null,4]
[null,"FC6","CC6A","Vision ","Yes","X","X",null,null,null,null,"X",null,null,"X",null,null,"x",null,null,null,null,null,null,null,null,null,null,null,null,null,null,null,null,null,null,"x","x","x",null,null,"X",null,null,null,null,null,null,null,null,null,null,null,null,null,null,null,null,null,null,null,null,null,null,null,null,null,null,null,null,null,null,null,null,null,null,null,null,null,null,null,null,null,null,null,null,null,null,null,null,null,null,null,null,null,null,null,null,null,null,null,null,null,null,null,null,null,null,null,null,null,null,null,null,5]
[null,"FC6","CC6A","Hearing ","Yes","X","X",null,null,null,null,"X",null,null,"X",null,null,"x",null,null,null,null,null,null,null,null,null,null,null,null,null,null,null,null,null,null,"x","x","x",null,null,"X",null,null,null,null,null,null,null,null,null,null,null,null,null,null,null,null,null,null,null,null,null,null,null,null,null,null,null,null,null,null,null,null,null,null,null,null,null,null,null,null,null,null,null,null,null,null,null,null,null,null,null,null,null,null,null,null,null,null,null,null,null,null,null,null,null,null,null,null,null,null,null,null,5]
[null,"FC6","CC6A","Other Senses ","Yes",null,"X",null,null,null,null,"X",null,null,"X",null,null,"x",null,null,null,null,null,null,null,null,null,null,null,null,null,null,null,null,null,"x","x","x","x",null,null,"X",null,null,null,null,null,null,null,null,null,null,null,null,null,null,null,null,null,null,null,null,null,null,null,null,null,null,null,null,null,null,null,null,null,null,null,null,null,null,null,null,null,null,null,null,null,null,null,null,null,null,null,null,null,null,null,null,null,null,null,null,null,null,null,null,null,null,null,null,null,null,null,null,6]
[null,"FC6","CC6A","Perception ","Yes",null,null,null,null,null,null,"X",null,null,"X",null,null,null,null,null,null,null,null,null,null,null,null,null,null,null,null,null,null,null,null,null,null,null,null,null,null," ",null,null,null,null,null,null,null,null,null,null,null,null,null,null,null,null,null,null,null,null,null,null,null,null,null,null,null,null,null,null,null,null,null,null,null,null,null,null,null,null,null,null,null,null,null,null,null,null,null,null,null,null,null,null,null,null,null,null,null,null,null,null,null,null,null,null,null,null,null,null,null,null,1]
[null,"FC6","CC6B","Attention","Yes",null,null,null,null,null,null,"X",null,null,"X",null,null,null,null,null,null,null,null,null,null,null,null,null,null,null,null,null,null,null,null,null,null,null,null,null,null,null,null,null,null,null,null,null,null,null,null,null,null,null,null,null,null,null,null,null,null,null,null,null,null,null,null,null,null,null,null,null,null,null,null,null,null,null,null,null,null,null,null,null,null,null,null,null,null,null,null,null,null,null,null,null,null,null,null,null,null,null,null,null,null,null,null,null,null,null,null,null,null,null,0]
[null,"FC6","CC6B","Cognition ","Yes",null,"X",null,null,null,null,"X",null,null,"X",null,null,null,null,null,null,null,null,null,null,null,null,null,null,null,null,null,null,null,null,null,null,null,null,null,null,null,null,null,null,null,null,null,null,null,null,null,null,null,null,null,null,null,null,null,null,null,null,null,null,null,null,null,null,null,null,null,null,null,null,null,null,null,null,null,null,null,null,null,null,null,null,null,null,null,null,null,null,null,null,null,null,null,null,null,null,null,null,null,null,null,null,null,null,null,null,null,null,null,0]
[null,"FC6","CC6B","Consciousness","Yes",null,"X",null,null,null,null,"X",null,null,"X",null,null,null,null,null,null,null,null,null,null,null,null,null,null,null,null,null,null,null,null,null,null,null,null,null,null,"X",null,null,null,null,null,null,null,null,null,null,null,null,null,null,null,null,null,null,null,null,null,null,null,null,null,null,null,null,null,null,null,null,null,null,null,null,null,null,null,null,null,null,null,null,null,null,null,null,null,null,null,null,null,null,null,null,null,null,null,null,null,null,null,null,null,null,null,null,null,null,null,null,1]
[null,"FC6","CC6B","Memory ","Yes",null,"X",null,null,null,null,"X",null,null,"X",null,null,null,null,null,null,null,null,null,null,null,null,null,null,null,null,null,null,null,null,"x",null,null,null,null,null,"X",null,null,null,null,null,null,null,null,null,null,null,null,null,null,null,null,null,null,null,null,null,null,null,null,null,null,null,null,null,null,null,null,null,null,null,null,null,null,null,null,null,null,null,null,null,null,null,null,null,null,null,null,null,null,null,null,null,null,null,null,null,null,null,null,null,null,null,null,null,null,null,null,2]
[null,"FC6","CC6B","Language ","Yes",null,"X",null,null,null,null,"X",null,null,"X",null,null,null,null,null,null,null,null,null,null,null,null,null,null,null,null,null,null,null,null,null,null,null,null,null,null,null,null,null,null,null,null,null,null,null,null,null,null,null,null,null,null,null,null,null,null,null,null,null,null,null,null,null,null,null,null,null,null,null,null,null,null,null,null,null,null,null,null,null,null,null,null,null,null,null,null,null,null,null,null,null,null,null,null,null,null,null,null,null,null,null,null,null,null,null,null,null,null,null,0]
[null,"FC6","CC6C","Emotion ","Yes",null,"X",null,null,null,null,"X",null,null,"X",null,null,null,null,null,null,null,null,null,null,null,null,null,null,null,null,null,null,null,null,null,null,null,null,null,null,"X",null,null,null,null,null,null,null,null,null,null,null,null,null,null,null,null,null,null,null,null,null,null,null,null,null,null,null,null,null,null,null,null,null,null,null,null,null,null,null,null,null,null,null,null,null,null,null,null,null,null,null,null,null,null,null,null,null,null,null,null,null,null,null,null,null,null,null,null,null,null,null,null,1]
[null,"FC6","CC6C","Stress ","Yes",null,"X",null,null,null,null,"X",null,null,"X",null,null,null,null,null,null,null,null,null,null,null,null,null,null,null,null,null,null,null,null,null,null,null,null,null,null,"X",null,null,null,null,null,null,null,null,null,null,null,null,null,null,null,null,null,null,null,null,null,null,null,null,null,null,null,null,null,null,null,null,null,null,null,null,null,null,null,null,null,null,null,null,null,null,null,null,null,null,null,null,null,null,null,null,null,null,null,null,null,null,null,null,null,null,null,null,null,null,null,null,1]
[null,"FC7","CC7A","Biological Bases of Behavior","Yes",null,"X",null,null,null,null,"X",null,null,"X",null,null,"x",null,null,null,null,null,null,null,null,null,null,null,null,null,null,null,null,null,null,null,null,null,null,null,null,null,null,null,null,null,null,null,null,null,null,null,null,null,null,null,null,null,null,null,null,null,null,null,null,null,null,null,null,null,null,null,null,null,null,null,null,null,null,null,null,null,null,null,null,null,null,null,null,null,null,null,null,null,null,null,null,null,null,null,null,null,null,null,null,null,null,null,null,null,null,null,null,1]
[null,"FC7","CC7A","Personality ","Yes",null,null,null,null,null,null,"X",null,null,"X",null,null,null,null,null,null,null,null,null,null,null,null,null,null,null,null,null,null,null,null,null,null,null,null,null,null,null,null,null,null,null,null,null,null,null,null,null,null,null,null,null,null,null,null,null,null,null,null,null,null,null,null,null,null,null,null,null,null,null,null,null,null,null,null,null,null,null,null,null,null,null,null,null,null,null,null,null,null,null,null,null,null,null,null,null,null,null,null,null,null,null,null,null,null,null,null,null,null,null,0]
[null,"FC7","CC7A","Psychological Disorders ","Yes",null,"X",null,null,null,null,"X",null,null,"X",null,null,null,null,null,null,null,null,null,null,null,null,null,null,null,null,null,null,null,null,null,null,null,null,null,null,null,null,"x",null,null,null,null,null,null,null,null,null,null,null,null,null,null,null,null,null,null,null,null,null,null,null,null,null,null,null,null,null,null,null,null,null,null,null,null,null,null,null,null,null,null,null,null,null,null,null,null,null,null,null,null,null,null,null,null,null,null,null,null,null,null,null,null,null,null,null,null,null,null,1]
[null,"FC7","CC7A","Motivation","Yes",null,"X",null,null,null,null,"X",null,null,"X",null,null,null,null,null,null,null,null,null,null,null,null,null,null,null,null,null,null,null,null,null,null,null,null,null,null,"X",null,null,null,null,null,null,null,null,null,null,null,null,null,null,null,null,null,null,null,null,null,null,null,null,null,null,null,null,null,null,null,null,null,null,null,null,null,null,null,null,null,null,null,null,null,null,null,null,null,null,null,null,null,null,null,null,null,null,null,null,null,null,null,null,null,null,null,null,null,null,null,null,1]
[null,"FC7","CC7A","Attitudes ","Yes",null,null,null,null,null,null,"X",null,null,"X",null,null,null,null,null,null,null,null,null,null,null,null,null,null,null,null,null,null,null,null,null,null,null,null,null,null,null,null,null,null,null,null,null,null,null,null,null,null,null,null,null,null,null,null,null,null,null,null,null,null,null,null,null,null,null,null,null,null,null,null,null,null,null,null,null,null,null,null,null,null,null,null,null,null,null,null,null,null,null,null,null,null,null,null,null,null,null,null,null,null,null,null,null,null,null,null,null,null,null,0]
[null,"FC7","CC7B","How the Presence of Others Affects Individual Behavior","Yes",null,null,null,null,null,null,"X","X",null,"X","X",null,null,null,null,null,null,null,null,null,null,null,null,null,null,null,null,null,null,null,null,null,null,null,null,null,null,null,null,null,null,null,null,null,null,null,null,null,null,null,null,null,null,null,null,null,null,null,null,null,null,null,null,null,null,null,null,null,null,null,null,null,null,null,null,null,null,null,null,null,null,null,null,null,null,null,null,null,null,null,null,null,null,null,null,null,null,null,null,null,null,null,null,null,null,null,null,null,null,1]
[null,"FC7","CC7B","Group Decision-making Processes ","Yes",null,null,null,null,null,null,"X","X",null,"X",null,null,null,null,null,null,null,null,null,null,null,null,null,null,null,null,null,null,null,null,null,null,null,null,null,null,null,null,null,null,null,null,null,null,null,null,null,null,null,null,null,null,null,null,null,null,null,null,null,null,null,null,null,null,null,null,null,null,null,null,null,null,null,null,null,null,null,null,null,null,null,null,null,null,null,null,null,null,null,null,null,null,null,null,null,null,null,null,null,null,null,null,null,null,null,null,null,null,null,0]
[null,"FC7","CC7B","Normative and Non-normative Behavior","Yes",null,null,null,null,null,null,"X","X",null,"X","X",null,null,null,null,null,null,null,null,null,null,null,null,null,null,null,null,null,null,null,null,null,null,null,null,null,null,null,null,null,null,null,null,null,null,null,null,null,null,null,null,null,null,null,null,null,null,null,null,null,null,null,null,null,null,null,null,null,null,null,null,null,null,null,null,null,null,null,null,null,null,null,null,null,null,null,null,null,null,null,null,null,null,null,null,null,null,null,null,null,null,null,null,null,null,null,null,null,null,1]
[null,"FC7","CC7B","Socialization ","Yes",null,null,null,null,null,null,"X","X",null,"X","X",null,null,null,null,null,null,null,null,null,null,null,null,null,null,null,null,null,null,null,null,null,null,null,null,null,null,null,null,null,null,null,null,null,null,null,null,null,null,null,null,null,null,null,null,null,null,null,null,null,null,null,null,null,null,null,null,null,null,null,null,null,null,null,null,null,null,null,null,null,null,null,null,null,null,null,null,null,null,null,null,null,null,null,null,null,null,null,null,null,null,null,null,null,null,null,null,null,null,1]
[null,"FC7","CC7C","Habituation and Dishabituation ","Yes",null,null,null,null,null,null,"X",null,null,"X",null,null,null,null,null,null,null,null,null,null,null,null,null,null,null,null,null,null,null,null,null,null,null,null,null,null,null,null,null,null,null,null,null,null,null,null,null,null,null,null,null,null,null,null,null,null,null,null,null,null,null,null,null,null,null,null,null,null,null,null,null,null,null,null,null,null,null,null,null,null,null,null,null,null,null,null,null,null,null,null,null,null,null,null,null,null,null,null,null,null,null,null,null,null,null,null,null,null,null,0]
[null,"FC7","CC7C","Associative Learning","Yes",null,"X",null,null,null,null,"X",null,null,null,null,null,null,null,null,null,null,null,null,null,null,null,null,null,null,null,null,null,null,null,null,null,null,null,null,null,"X",null,null,null,null,null,null,null,null,null,null,null,null,null,null,null,null,null,null,null,null,null,null,null,null,null,null,null,null,null,null,null,null,null,null,null,null,null,null,null,null,null,null,null,null,null,null,null,null,null,null,null,null,null,null,null,null,null,null,null,null,null,null,null,null,null,null,null,null,null,null,null,null,1]
[null,"FC7","CC7C","Observational Learning ","Yes",null,null,null,null,null,null,"X",null,null,"X",null,null,null,null,null,null,null,null,null,null,null,null,null,null,null,null,null,null,null,null,null,null,null,null,null,null,"X",null,null,null,null,null,null,null,null,null,null,null,null,null,null,null,null,null,null,null,null,null,null,null,null,null,null,null,null,null,null,null,null,null,null,null,null,null,null,null,null,null,null,null,null,null,null,null,null,null,null,null,null,null,null,null,null,null,null,null,null,null,null,null,null,null,null,null,null,null,null,null,null,1]
[null,"FC7","CC7C","Theories of Attitude and Behavior Change ","Yes",null,null,null,null,null,null,"X",null,null,"X",null,null,null,null,null,null,null,null,null,null,null,null,null,null,null,null,null,null,null,null,null,null,null,null,null,null,null,null,null,null,null,null,null,null,null,null,null,null,null,null,null,null,null,null,null,null,null,null,null,null,null,null,null,null,null,null,null,null,null,null,null,null,null,null,null,null,null,null,null,null,null,null,null,null,null,null,null,null,null,null,null,null,null,null,null,null,null,null,null,null,null,null,null,null,null,null,null,null,null,0]
[null,"FC8","CC8A","Self Concept, Self-identity, and Social Identity ","Yes",null,null,null,null,null,null,"X","X",null,"X","X",null,null,null,null,null,null,null,null,null,null,null,null,null,null,null,null,null,null,null,null,null,null,null,null,null,null,null,null,null,null,null,null,null,null,null,null,null,null,null,null,null,null,null,null,null,null,null,null,null,null,null,null,null,null,null,null,null,null,null,null,null,null,null,null,null,null,null,null,null,null,null,null,null,null,null,null,null,null,null,null,null,null,null,null,null,null,null,null,null,null,null,null,null,null,null,null,null,null,1]
[null,"FC8","CC8A","Formation of Identity ","Yes",null,null,null,null,null,null,"X","X",null,"X",null,null,null,null,null,null,null,null,null,null,null,null,null,null,null,null,null,null,null,null,null,null,null,null,null,null,null,null,null,null,null,null,null,null,null,null,null,null,null,null,null,null,null,null,null,null,null,null,null,null,null,null,null,null,null,null,null,null,null,null,null,null,null,null,null,null,null,null,null,null,null,null,null,null,null,null,null,null,null,null,null,null,null,null,null,null,null,null,null,null,null,null,null,null,null,null,null,null,null,0]
[null,"FC8","CC8B","Attributing Behavior to Persons or Situations ","Yes",null,null,null,null,null,null,"X",null,null,"X",null,null,null,null,null,null,null,null,null,null,null,null,null,null,null,null,null,null,null,null,null,null,null,null,null,null,null,null,null,null,null,null,null,null,null,null,null,null,null,null,null,null,null,null,null,null,null,null,null,null,null,null,null,null,null,null,null,null,null,null,null,null,null,null,null,null,null,null,null,null,null,null,null,null,null,null,null,null,null,null,null,null,null,null,null,null,null,null,null,null,null,null,null,null,null,null,null,null,null,0]
[null,"FC8","CC8B","Prejudice and Bias ","Yes",null,null,null,null,null,null,"X","X",null,"X","X",null,null,null,null,null,null,null,null,null,null,null,null,null,null,null,null,null,null,null,null,null,null,null,null,null,null,null,null,null,null,null,null,null,null,null,null,null,null,null,null,null,null,null,null,null,null,null,null,null,null,null,null,null,null,null,null,null,null,null,null,null,null,null,null,null,null,null,null,null,null,null,null,null,null,null,null,null,null,null,null,null,null,null,null,null,null,null,null,null,null,null,null,null,null,null,null,null,null,1]
[null,"FC8","CC8B","Processes Related to Stereotypes ","Yes",null,null,null,null,null,null,"X",null,null,"X",null,null,null,null,null,null,null,null,null,null,null,null,null,null,null,null,null,null,null,null,null,null,null,null,null,null,null,null,null,null,null,null,null,null,null,null,null,null,null,null,null,null,null,null,null,null,null,null,null,null,null,null,null,null,null,null,null,null,null,null,null,null,null,null,null,null,null,null,null,null,null,null,null,null,null,null,null,null,null,null,null,null,null,null,null,null,null,null,null,null,null,null,null,null,null,null,null,null,null,0]
[null,"FC8","CC8C","Elements of Social Interaction ","Yes",null,null,null,null,null,null,"X","X",null,"X","X",null,null,null,null,null,null,null,null,null,null,null,null,null,null,null,null,null,null,null,null,null,null,null,null,null,null,null,null,null,null,null,null,null,null,null,null,null,null,null,null,null,null,null,null,null,null,null,null,null,null,null,null,null,null,null,null,null,null,null,null,null,null,null,null,null,null,null,null,null,null,null,null,null,null,null,null,null,null,null,null,null,null,null,null,null,null,null,null,null,null,null,null,null,null,null,null,null,null,{"$f":"COUNTA(P144:DJ144)","v":1}]
[null,"FC8","CC8C","Self-presentation and Interacting with Others ","Yes",null,"X",null,null,null,null,"X","X",null,"X","X",null,null,null,null,null,null,null,null,null,null,null,null,null,null,null,null,null,null,null,null,null,null,null,null,null,null,null,null,null,null,null,null,null,null,null,null,null,null,null,null,null,null,null,null,null,null,null,null,null,null,null,null,null,null,null,null,null,null,null,null,null,null,null,null,null,null,null,null,null,null,null,null,null,null,null,null,null,null,null,null,null,null,null,null,null,null,null,null,null,null,null,null,null,null,null,null,null,null,1]
[null,"FC8","CC8C","Social Behavior ","Yes",null,"X",null,null,null,null,"X",null,null,"X",null,null,null,null,null,null,null,null,null,null,null,null,null,null,null,null,null,null,null,null,null,null,null,null,null,null,null,null,null,null,null,null,null,null,null,null,null,null,null,null,null,null,null,null,null,null,null,null,null,null,null,null,null,null,null,null,null,null,null,null,null,null,null,null,null,null,null,null,null,null,null,null,null,null,null,null,null,null,null,null,null,null,null,null,null,null,null,null,null,null,null,null,null,null,null,null,null,null,null,0]
[null,"FC8","CC8C","Discrimination","Yes",null,null,null,null,null,null,"X","X",null,"X","X",null,null,null,null,null,null,null,null,null,null,null,null,null,null,null,null,null,null,null,null,null,null,null,null,null,null,null,null,null,null,null,null,null,null,null,null,null,null,null,null,null,null,null,null,null,null,null,null,null,null,null,null,null,null,null,null,null,null,null,null,null,null,null,null,null,null,null,null,null,null,null,null,null,null,null,null,null,null,null,null,null,null,null,null,null,null,null,null,null,null,null,null,null,null,null,null,null,null,1]
[null,"FC9","CC9A","Theoretical Approaches ","Yes",null,null,null,null,null,null,null,"X",null,null,"X",null,null,null,null,null,null,null,null,null,null,null,null,null,null,null,null,null,null,null,null,null,null,null,null,null,null,null,null,null,null,null,null,null,null,null,null,null,null,null,null,null,null,null,null,null,null,null,null,null,null,null,null,null,null,null,null,null,null,null,null,null,null,null,null,null,null,null,null,null,null,null,null,null,null,null,null,null,null,null,null,null,null,null,null,null,null,null,null,null,null,null,null,null,null,null,null,null,null,1]
[null,"FC9","CC9A","Social Institutions ","Yes",null,null,null,null,null,null,"X","X",null,null,"X",null,null,null,null,null,null,null,null,null,null,null,null,null,null,null,null,null,null,null,null,null,null,null,null,null,null,null,null,null,null,null,null,null,null,null,null,null,null,null,null,null,null,null,null,null,null,null,null,null,null,null,null,null,null,null,null,null,null,null,null,null,null,null,null,null,null,null,null,null,null,null,null,null,null,null,null,null,null,null,null,null,null,null,null,null,null,null,null,null,null,null,null,null,null,null,null,null,null,1]
[null,"FC9","CC9A","Culture ","Yes",null,"X",null,null,null,null,"X","X",null,null,"X",null,null,null,null,null,null,null,null,null,null,null,null,null,null,null,null,null,null,null,null,null,null,null,null,null,null,null,null,null,null,null,null,null,null,null,null,null,null,null,null,null,null,null,null,null,null,null,null,null,null,null,null,null,null,null,null,null,null,null,null,null,null,null,null,null,null,null,null,null,null,null,null,null,null,null,null,null,null,null,null,null,null,null,null,null,null,null,null,null,null,null,null,null,null,null,null,null,null,1]
[null,"FC9","CC9B","Demographic Structure of Society ","NO!",null,null,null,null,null,null,null,"X",null,null,null,null,null,null,null,null,null,null,null,null,null,null,null,null,null,null,null,null,null,null,null,null,null,null,null,null,null,null,null,null,null,null,null,null,null,null,null,null,null,null,null,null,null,null,null,null,null,null,null,null,null,null,null,null,null,null,null,null,null,null,null,null,null,null,null,null,null,null,null,null,null,null,null,null,null,null,null,null,null,null,null,null,null,null,null,null,null,null,null,null,null,null,null,null,null,null,null,null,null,0]
[null,"FC9","CC9B","Demographic Shifts and Social Change","NO!",null,null,null,null,null,null,null,"X",null,null,null,null,null,null,null,null,null,null,null,null,null,null,null,null,null,null,null,null,null,null,null,null,null,null,null,null,null,null,null,null,null,null,null,null,null,null,null,null,null,null,null,null,null,null,null,null,null,null,null,null,null,null,null,null,null,null,null,null,null,null,null,null,null,null,null,null,null,null,null,null,null,null,null,null,null,null,null,null,null,null,null,null,null,null,null,null,null,null,null,null,null,null,null,null,null,null,null,null,null,0]
[null,"FC10","CC10A","Spatial Inequality","NO!",null,null,null,null,null,null,null,"X",null,null,null,null,null,null,null,null,null,null,null,null,null,null,null,null,null,null,null,null,null,null,null,null,null,null,null,null,null,null,null,null,null,null,null,null,null,null,null,null,null,null,null,null,null,null,null,null,null,null,null,null,null,null,null,null,null,null,null,null,null,null,null,null,null,null,null,null,null,null,null,null,null,null,null,null,null,null,null,null,null,null,null,null,null,null,null,null,null,null,null,null,null,null,null,null,null,null,null,null,null,0]
[null,"FC10","CC10A","Social Class ",{"$f":"IF(DK154>0,\"Yes\",\"NO!\")","v":"Yes"},null,null,null,null,null,null,null,"X",null,null,"X",null,null,null,null,null,null,null,null,null,null,null,null,null,null,null,null,null,null,null,null,null,null,null,null,null,null,null,null,null,null,null,null,null,null,null,null,null,null,null,null,null,null,null,null,null,null,null,null,null,null,null,null,null,null,null,null,null,null,null,null,null,null,null,null,null,null,null,null,null,null,null,null,null,null,null,null,null,null,null,null,null,null,null,null,null,null,null,null,null,null,null,null,null,null,null,null,null,null,1]
[null,"FC10","CC10A","Health Disparities ","Yes",null,null,null,null,null,null,null,"X","X",null,"X",null,null,null,null,null,null,null,null,null,null,null,null,null,null,null,null,null,null,null,null,null,null,null,null,null,null,null,null,null,null,null,null,null,null,null,null,null,null,null,null,null,null,null,null,null,null,null,null,null,null,null,null,null,null,null,null,null,null,null,null,null,null,null,null,null,null,null,null,null,null,null,null,null,null,null,null,null,null,null,null,null,null,null,null,null,null,null,null,null,null,null,null,null,null,null,null,null,null,1]
[null,"FC10","CC10A","Healthcare Disparities ","Yes",null,null,null,null,null,null,null,"X","X",null,null,null,null,null,null,null,null,null,null,null,null,null,null,null,null,null,null,null,null,null,null,null,null,null,null,null,null,null,null,null,null,null,null,null,null,null,null,null,null,null,null,null,null,null,null,null,null,null,null,null,null,null,null,null,null,null,null,null,null,null,null,null,null,null,null,null,null,null,null,null,null,null,null,null,null,null,null,null,null,null,null,null,null,null,null,null,null,null,null,null,null,null,null,null,null,null,null,null,null,0]
["#1 Knowledge of Scientific Concepts and Principles","All","All","All","NO!",null,null,null,null,null,null,null,null,null,null,null,null,null,null,null,null,null,null,null,null,null,null,null,null,null,null,null,null,null,null,null,null,null,null,null,null,null,null,null,null,null,null,null,null,null,null,null,null,null,null,null,null,null,null,null,null,null,null,null,null,null,null,null,null,null,null,null,null,null,null,null,null,null,null,null,null,null,null,null,null,null,null,null,null,null,null,null,null,null,null,null,null,null,null,null,null,null,null,null,null,null,null,null,null,null,null,null,null,null,0]
["#2 Scientific Reasoning and Problem Solving","All","All","All","NO!",null,null,null,null,null,null,null,null,null,null,null,null,null,null,null,null,null,null,null,null,null,null,null,null,null,null,null,null,null,null,null,null,null,null,null,null,null,null,null,null,null,null,null,null,null,null,null,null,null,null,null,null,null,null,null,null,null,null,null,null,null,null,null,null,null,null,null,null,null,null,null,null,null,null,null,null,null,null,null,null,null,null,null,null,null,null,null,null,null,null,null,null,null,null,null,null,null,null,null,null,null,null,null,null,null,null,null,null,null,0]
["#3 Reasoning about the Design and Execution of Research (E2*)","All","All","All","NO!",null,null,null,null,null,null,null,null,null,null,null,null,null,null,null,null,null,null,null,null,null,null,null,null,null,null,null,null,null,null,null,null,null,null,null,null,null,null,null,null,null,null,null,null,null,null,null,null,null,null,null,null,null,null,null,null,null,null,null,null,null,null,null,null,null,null,null,null,null,null,null,null,null,null,null,null,null,null,null,null,null,null,null,null,null,null,null,null,null,null,null,null,null,null,null,null,null,null,null,null,null,null,null,null,null,null,null,null,null,0]
["#4 Data-based and Statistical Reasoning (E1 *)","All","All","All","NO!",null,null,null,null,null,null,null,null,null,null,null,null,null,null,null,null,null,null,null,null,null,null,null,null,null,null,null,null,null,null,null,null,null,null,null,null,null,null,null,null,null,null,null,null,null,null,null,null,null,null,null,null,null,null,null,null,null,null,null,null,null,null,null,null,null,null,null,null,null,null,null,null,null,null,null,null,null,null,null,null,null,null,null,null,null,null,null,null,null,null,null,null,null,null,null,null,null,null,null,null,null,null,null,null,null,null,null,null,null,0]